{"text_format":"1","workbook":"xlsx","n_sheets":3,"sheets":["FORM","DATA","Update School Info Here"],"not_rendered":{"charts":0,"images":0,"macros":0,"external_links":1,"defined_names":19,"comments":0,"pivot_tables":0},"unopened":[],"bounds":{"document_bytes":16777216,"sheet_cells":100000,"rows_first":2000,"rows_last":500,"rows_between":2000,"halvings":0,"cell_chars":16384,"cell_head_chars":4096},"cells_cut":0,"cells_raw":0,"read":"whole","date_system":"1900"}

{"sheet":"FORM","index":0,"n_rows":47,"n_cols":18,"rows_kept":47,"cut":false,"hidden":false,"merged":[[44,1,45,7],[3,2,3,3],[29,2,29,3],[36,1,36,3],[36,5,36,7],[30,2,30,3],[31,2,31,3],[33,1,34,7],[29,4,29,6],[30,4,30,6],[31,4,31,6],[28,2,28,3],[21,2,23,3],[27,2,27,3],[26,2,26,3],[21,4,23,6],[24,4,24,6],[25,4,25,6],[26,4,26,6],[27,4,27,6],[28,4,28,6],[24,2,24,3],[25,2,25,3],[14,2,14,5],[8,2,8,5],[16,2,16,5],[9,2,9,5],[10,2,10,5]]}
[null,{"$f":"IF(Lang=1,P5,P6)","v":"Shared Services Enrolment Report - Facilities and Resources"}]
[null,null,null,null,null,null,null,null,null,null,null,null,null,null,null,"English",1]
[null,null,null,null,null,null,null,null,null,null,null,null,null,null,null,"French"]
[null,{"$f":"IF(Lang=1,P7,R7)","v":"School Year"},{"$f":"VLOOKUP(YEARNUM,YEARLOOKUP,2)","v":"2022-09-30"}]
[null,null,null,null,null,null,null,null,null,null,null,null,null,null,null,"Shared Services Enrolment Report - Facilities and Resources"]
[null,{"$f":"IF(Lang=1,P8,R8)","v":"Submit to"},{"$f":"IF(Lang=1,P9,R9)","v":"Education Funding Branch"},null,null,null,"efb@gov.mb.ca",null,null,null,null,null,null,null,null,"Rapport sur les inscriptions scolaires aux services partagés - Installations et Ressources"]
[null,null,null,null,null,null,null,null,null,null,null,null,null,null,null,"School Year",null,"Anneé scolaire"]
[null,null,null,null,null,null,null,null,null,null,null,null,null,null,null,"Submit to",null,"Soumettre à"]
[null,{"$f":"IF(Lang=1,P10,R10)","v":"Independent School"},{"$f":"IF(SCHNUM=1,\"\",VLOOKUP(SCHNUM,LOOKUPTABLE,2))","v":""},null,null,null,null,null,null,null,null,null,null,null,null,"Education Funding Branch",null,"Direction du financement de l’éducation"]
[null,{"$f":"IF(Lang=1,P11,R11)","v":"Address *"},{"$f":"IF(SCHNUM=1,\"\",VLOOKUP(SCHNUM,LOOKUPTABLE,3))","v":""},null,null,null,null,null,null,null,null,null,null,null,null,"Independent School",null,"École indépendante"]
[null,null,{"$f":"IF(SCHNUM=1,\"\",VLOOKUP(SCHNUM,LOOKUPTABLE,4))","v":""},null,null,null,null,null,null,null,null,null,null,null,null,"Address *",null,"Adresse*"]
[null,{"$f":"IF(Lang=1,P42,P43)","v":"* Provide a separate report for each school location."},null,null,null,null,null,null,null,null,null,null,null,null,null,"Public School Attended",null,"École publique fréquentée"]
[null,null,null,null,null,null,null,null,null,null,null,null,null,null,null,"School Division",null,"Division scolaire"]
[null,null,null,null,null,null,null,null,null,null,null,null,null,null,null,"Facility / Resource",null,"Établissement / ressource"]
[null,{"$f":"IF(Lang=1,P12,R12)","v":"Public School Attended"},{"$f":"IF(PUBNUM=1,\"\",VLOOKUP(PUBNUM,PUBLOOKUP,2))","v":""}]
[null,null,null,null,null,null,null,null,null,null,null,null,null,null,null,"           Home Economics",null,"           Industrial Arts"]
[null,{"$f":"IF(Lang=1,P13,R13)","v":"School Division"},{"$f":"IF(PUBNUM=1,\"\",VLOOKUP(PUBNUM,PUBLOOKUP,3))","v":""},null,null,null,"                                                                                                                                                                       ",null,null,null,null,null,null,null,null,"           Économie familiale",null,"           Arts industriels"]
[null,null,null,null,null,null,null,null,null,null,null,null,null,null,null,"Click box(es) to ",null,"Cochez toutes les "]
[null,"Facility / Resource :",{"$f":"IF(Lang=1,P16,P17)","v":"           Home Economics"},null,null,{"$f":"IF(Lang=1,P18,R18)","v":"Click box(es) to "},null,null,null,null,null,null,null,null,null,"add checkmark",null,"cases qui s’appliquent"]
[null,null,{"$f":"IF(Lang=1,R16,R17)","v":"           Industrial Arts"},null,null,{"$f":"IF(Lang=1,P19,R19)","v":"add checkmark"}]
[null,null,null,null,null,null,null,null,null,null,null,null,null,null,null,"Grade/Level",null,"Année ou niveau"]
[null,null,{"$f":"IF(Lang=1,P21,R21)","v":"Grade/Level"},null,{"$f":"IF(Lang=1,P22,R22)","v":"Number of Eligible Pupils using Facilities/Resources"},null,null,null,null,null,null,null,null,null,null,"Number of Eligible Pupils using Facilities/Resources",null,"Nombre d’élèves admissibles utilisant les installations/ressources"]
[null,null,null,null,null,null,null,null,null,null,null,null,null,null,null,"    Grade 6",null,"    6e année"]
[null,null,null,null,null,null,null,null,null,null,null,null,null,null,null,"    Grade 7",null,"    7e année"]
[null,null,{"$f":"IF(Lang=1,P23,R23)","v":"    Grade 6"},null,null,null,null,null,null,null,null,null,null,null,null,"    Grade 8",null,"    8e année"]
[null,null,{"$f":"IF(Lang=1,P24,R24)","v":"    Grade 7"},null,null,null,null,null,null,null,null,null,null,null,null,"    Grade 9",null,"    9e année"]
[null,null,{"$f":"IF(Lang=1,P25,R25)","v":"    Grade 8"},null,null,null,null,null,null,null,null,null,null,null,null,"    Grade 10",null,"    10e année"]
[null,null,{"$f":"IF(Lang=1,P26,R26)","v":"    Grade 9"},null,null,null,null,null,null,null,null,null,null,null,null,"    Grade 11",null,"    11e année"]
[null,null,{"$f":"IF(Lang=1,P27,R27)","v":"    Grade 10"},null,null,null,null,null,null,null,null,null,null,null,null,"    Grade 12",null,"    12e année"]
[null,null,{"$f":"IF(Lang=1,P28,R28)","v":"    Grade 11"}]
[null,null,{"$f":"IF(Lang=1,P29,R29)","v":"    Grade 12"},null,null,null,null,null,null,null,null,null,null,null,null,"We hereby certify that the above information is true and correct, and in accordance with the Public Schools Act and Manitoba Regulations"]
[null,null,"    Total",null,{"$f":"SUM(E25:F31)","v":0},null,null,null,null,null,null,null,null,null,null,"Nous certifions par les présentes que les renseignements ci-dessus sont véridiques et exacts, et conformes à la Loi sur les écoles publiques et aux règlements du Manitoba."]
[]
[null,{"$f":"IF(Lang=1,P31,P32)","v":"We hereby certify that the above information is true and correct, and in accordance with the Public Schools Act and Manitoba Regulations"},null,null,null,null,null,null,null,null,null,null,null,null,null,"Independent School",null,"École indépendante :"]
[null,null,null,null,null,null,null,null,null,null,null,null,null,null,null,"Public School Division",null,"Division scolaire publique"]
[null,null,null,null,null,null,null,null,null,null,null,null,null,null,null,"Principal",null," Directeur d’école"]
[null,{"$f":"IF(Lang=1,P34,R34)","v":"Independent School"},null,null,null,{"$f":"IF(Lang=1,P35,R35)","v":"Public School Division"},null,null,null,null,null,null,null,null,null,"Secretary-Treasurer",null,"Secrétaire-trésorier"]
[null,null,null,null,null,null,null,null,null,null,null,null,null,null,null,"Chairperson",null,"Président"]
[null,null,null,null,null,null,null,null,null,null,null,null,null,null,null,"Superintendent",null,"Directrice générale"]
[null,{"$f":"IF(Lang=1,P36,R36)","v":"Principal"},null,"   Date",null,{"$f":"IF(Lang=1,P37,R37)","v":"Secretary-Treasurer"},null,"Date         ",null,null,null,null,null,null,null,null,null,"Directeur général"]
[]
[null,null,null,null,null,null,null,null,null,null,null,null,null,null,null,"* Provide a separate report for each school location."]
[null,{"$f":"IF(Lang=1,P38,R38)","v":"Chairperson"},null,"   Date",null,{"$f":"IF(Lang=1,P39,R39)","v":"Superintendent"},null,"Date         ",null,null,null,null,null,null,null,"* Veuillez fournir un rapport séparé pour chaque établissement scolaire."]
[null,null,null,null,null,{"$f":"IF(Lang=1,\"\",R40)","v":""},null,null,null,null,null,null,null,null,null,"After the school division has signed this form, please forward to the Education Funding Branch."]
[null,{"$f":"IF(Lang=1,P44,P45)","v":"After the school division has signed this form, please forward to the Education Funding Branch."},null,null,null,null,null,null,null,null,null,null,null,null,null,"Lorsque la division scolaire aura signé ce formulaire, veuillez l’acheminer à la Direction du financement de l’éducation."]
[null,null,null,null,null,null,null,null,null,null,null,null,null,null,null,"'May 2022",null,"'Mai 2022"]
[null,{"$f":"IF(Lang=1,P46,R46)","v":"'May 2022"}]

{"sheet":"DATA","index":1,"n_rows":366,"n_cols":23,"rows_kept":366,"cut":false,"hidden":true,"merged":[]}
["SCHNUM",1,1,{"$f":"IF(Lang=1,E1,F1)","v":"Press arrow for your School Name ->"},"Press arrow for your School Name ->","Appuyez sur la flèche pour sélectionner le nom de votre école ->",null,1,{"$f":"IF(Lang=1,O1,O2)","v":"Press arrow for the Public School ->"},null,1,{"$f":"IF(Lang=1,O4,O5)","v":"Press arrow for School Division ->"},null,null,"Press arrow for the Public School ->"]
[null,null,2,{"$f":"SUBSTITUTE(PROPER('Update School Info Here'!E5),\"'S\",\"'s\")","v":"Académie Islamique Du Manitoba"},{"$f":"SUBSTITUTE(PROPER('Update School Info Here'!F5),\"'S\",\"'s\")","v":"178 Worthington Avenue     "},{"$f":"SUBSTITUTE(PROPER('Update School Info Here'!I5),\"'S\",\"'s\")&\"     \"&'Update School Info Here'!J5","v":"Winnipeg     R2M1R7"},null,{"$f":"+H1+1","v":2},null,null,{"$f":"+K1+1","v":2},"Beautiful Plains",null,null,"Appuyez sur la flèche pour sélectionner l’école publique ->"]
["PUBNUM",1,3,{"$f":"SUBSTITUTE(PROPER('Update School Info Here'!E6),\"'S\",\"'s\")","v":"Alhijra Islamic School"},{"$f":"SUBSTITUTE(PROPER('Update School Info Here'!F6),\"'S\",\"'s\")","v":"410 Desalaberry Avenue     "},{"$f":"SUBSTITUTE(PROPER('Update School Info Here'!I6),\"'S\",\"'s\")&\"     \"&'Update School Info Here'!J6","v":"Winnipeg     R2L0Y7"},null,{"$f":"+H2+1","v":3},{"$f":"W3&\" - \"&V3","v":"Border Land - École Elmwood School"},null,{"$f":"+K2+1","v":3},"Border Land",null,null,null,null,null,null,null,null,null,"École Elmwood School","Border Land"]
[null,null,4,{"$f":"SUBSTITUTE(PROPER('Update School Info Here'!E7),\"'S\",\"'s\")","v":"Austin Christian Academy"},{"$f":"SUBSTITUTE(PROPER('Update School Info Here'!F7),\"'S\",\"'s\")","v":"Box 460     "},{"$f":"SUBSTITUTE(PROPER('Update School Info Here'!I7),\"'S\",\"'s\")&\"     \"&'Update School Info Here'!J7","v":"Austin     R0H0C0"},null,4,{"$f":"W4&\" - \"&V4","v":"Border Land - École Parkside School"},null,4,"Brandon",null,null,"Press arrow for School Division ->",null,null,null,null,null,null,"École Parkside School","Border Land"]
["YEARNUM",1,5,{"$f":"SUBSTITUTE(PROPER('Update School Info Here'!E8),\"'S\",\"'s\")","v":"Balmoral Hall School"},{"$f":"SUBSTITUTE(PROPER('Update School Info Here'!F8),\"'S\",\"'s\")","v":"630 Westminster Avenue     "},{"$f":"SUBSTITUTE(PROPER('Update School Info Here'!I8),\"'S\",\"'s\")&\"     \"&'Update School Info Here'!J8","v":"Winnipeg     R3C3S1"},null,5,{"$f":"W5&\" - \"&V5","v":"Border Land - École West Park School"},null,5,"DS Franco-manitobaine",null,null,"Appuyez sur la flèche pour sélectionner la division scolaire ->",null,null,null,null,null,null,"École West Park School","Border Land"]
[null,null,6,{"$f":"SUBSTITUTE(PROPER('Update School Info Here'!E9),\"'S\",\"'s\")","v":"Beautiful Savior Lutheran School"},{"$f":"SUBSTITUTE(PROPER('Update School Info Here'!F9),\"'S\",\"'s\")","v":"52 Birchdale Ave.     "},{"$f":"SUBSTITUTE(PROPER('Update School Info Here'!I9),\"'S\",\"'s\")&\"     \"&'Update School Info Here'!J9","v":"Winnipeg     R2H1R9"},null,6,{"$f":"W6&\" - \"&V6","v":"Border Land - Emerson Elementary"},null,6,"Evergreen",null,null,null,null,null,null,null,null,null,"Emerson Elementary","Border Land"]
["DivNum",1,7,{"$f":"SUBSTITUTE(PROPER('Update School Info Here'!E10),\"'S\",\"'s\")","v":"Calvin Christian School"},{"$f":"SUBSTITUTE(PROPER('Update School Info Here'!F10),\"'S\",\"'s\")","v":"245 Sutton Avenue     "},{"$f":"SUBSTITUTE(PROPER('Update School Info Here'!I10),\"'S\",\"'s\")&\"     \"&'Update School Info Here'!J10","v":"Winnipeg     R2G0T1"},null,7,{"$f":"W7&\" - \"&V7","v":"Border Land - Green Ridge School"},null,7,"Flin Flon",null,null,null,null,null,null,null,null,null,"Green Ridge School","Border Land"]
[null,null,8,{"$f":"SUBSTITUTE(PROPER('Update School Info Here'!E11),\"'S\",\"'s\")","v":"Cartwright Community Independent Sch."},{"$f":"SUBSTITUTE(PROPER('Update School Info Here'!F11),\"'S\",\"'s\")","v":"Box 419  810 Broadway Street     "},{"$f":"SUBSTITUTE(PROPER('Update School Info Here'!I11),\"'S\",\"'s\")&\"     \"&'Update School Info Here'!J11","v":"Cartwright     R0K0L0"},null,8,{"$f":"W8&\" - \"&V8","v":"Border Land - Gretna Elementary"},null,8,"Fort La Bosse",null,null,null,null,null,null,null,null,null,"Gretna Elementary","Border Land"]
[null,null,9,{"$f":"SUBSTITUTE(PROPER('Update School Info Here'!E12),\"'S\",\"'s\")","v":"Children's House"},{"$f":"SUBSTITUTE(PROPER('Update School Info Here'!F12),\"'S\",\"'s\")","v":"150 Pacific Avenue     "},{"$f":"SUBSTITUTE(PROPER('Update School Info Here'!I12),\"'S\",\"'s\")&\"     \"&'Update School Info Here'!J12","v":"Winnipeg     R3B3K8"},null,9,{"$f":"W9&\" - \"&V9","v":"Border Land - Roseau Valley School"},null,9,"Frontier",null,null,null,null,null,null,null,null,null,"Roseau Valley School","Border Land"]
[null,null,10,{"$f":"SUBSTITUTE(PROPER('Update School Info Here'!E13),\"'S\",\"'s\")","v":"Christ The King School"},{"$f":"SUBSTITUTE(PROPER('Update School Info Here'!F13),\"'S\",\"'s\")","v":"12 Lennox Avenue     "},{"$f":"SUBSTITUTE(PROPER('Update School Info Here'!I13),\"'S\",\"'s\")&\"     \"&'Update School Info Here'!J13","v":"Winnipeg     R2M1A6"},null,10,{"$f":"W10&\" - \"&V10","v":"Border Land - Rosenfeld Elementary"},null,10,"Garden Valley",null,null,null,null,null,null,null,null,null,"Rosenfeld Elementary","Border Land"]
[null,null,11,{"$f":"SUBSTITUTE(PROPER('Update School Info Here'!E14),\"'S\",\"'s\")","v":"Christian Heritage School"},{"$f":"SUBSTITUTE(PROPER('Update School Info Here'!F14),\"'S\",\"'s\")","v":"2025 26Th Street     "},{"$f":"SUBSTITUTE(PROPER('Update School Info Here'!I14),\"'S\",\"'s\")&\"     \"&'Update School Info Here'!J14","v":"Brandon     R7B3Y2"},null,11,{"$f":"W11&\" - \"&V11","v":"Border Land - Ross L. Gray School"},null,11,"Hanover",null,null,null,null,null,null,null,null,null,"Ross L. Gray School","Border Land"]
[null,null,12,{"$f":"SUBSTITUTE(PROPER('Update School Info Here'!E15),\"'S\",\"'s\")","v":"Community Bible Fellowship Christian"},{"$f":"SUBSTITUTE(PROPER('Update School Info Here'!F15),\"'S\",\"'s\")","v":"Box 1630     "},{"$f":"SUBSTITUTE(PROPER('Update School Info Here'!I15),\"'S\",\"'s\")&\"     \"&'Update School Info Here'!J15","v":"Swan River     R0L1Z0"},null,12,{"$f":"W12&\" - \"&V12","v":"Border Land - Shevchenko School"},null,12,"Interlake",null,null,null,null,null,null,null,null,null,"Shevchenko School","Border Land"]
[null,null,{"$f":"+C12+1","v":13},{"$f":"SUBSTITUTE(PROPER('Update School Info Here'!E16),\"'S\",\"'s\")","v":"Dasmesh School"},{"$f":"SUBSTITUTE(PROPER('Update School Info Here'!F16),\"'S\",\"'s\")","v":"105 Holmes Road     "},{"$f":"SUBSTITUTE(PROPER('Update School Info Here'!I16),\"'S\",\"'s\")&\"     \"&'Update School Info Here'!J16","v":"West St. Paul     R4A6A2"},null,13,{"$f":"W13&\" - \"&V13","v":"Border Land - W. C. Miller Collegiate"},null,13,"Kelsey",null,null,null,null,null,null,null,null,null,"W. C. Miller Collegiate","Border Land"]
[null,null,{"$f":"+C13+1","v":14},{"$f":"SUBSTITUTE(PROPER('Update School Info Here'!E17),\"'S\",\"'s\")","v":"Dufferin Christian School"},{"$f":"SUBSTITUTE(PROPER('Update School Info Here'!F17),\"'S\",\"'s\")","v":"Box 1450     "},{"$f":"SUBSTITUTE(PROPER('Update School Info Here'!I17),\"'S\",\"'s\")&\"     \"&'Update School Info Here'!J17","v":"Carman     R0G0J0"},null,14,{"$f":"W14&\" - \"&V14","v":"Brandon - Alexander School"},null,14,"Lakeshore",null,null,null,null,null,null,null,null,null,"Alexander School","Brandon"]
[null,null,15,{"$f":"SUBSTITUTE(PROPER('Update School Info Here'!E18),\"'S\",\"'s\")","v":"Faith Academy"},{"$f":"SUBSTITUTE(PROPER('Update School Info Here'!F18),\"'S\",\"'s\")","v":"437 Matheson Ave.     "},{"$f":"SUBSTITUTE(PROPER('Update School Info Here'!I18),\"'S\",\"'s\")&\"     \"&'Update School Info Here'!J18","v":"Winnipeg     R2W0E1"},null,15,{"$f":"W15&\" - \"&V15","v":"Brandon - Betty Gibson School"},null,15,"Lord Selkirk",null,null,null,null,null,null,null,null,null,"Betty Gibson School","Brandon"]
[null,null,16,{"$f":"SUBSTITUTE(PROPER('Update School Info Here'!E19),\"'S\",\"'s\")","v":"Freedom International School"},{"$f":"SUBSTITUTE(PROPER('Update School Info Here'!F19),\"'S\",\"'s\")","v":"771 Sargent Avenue     "},{"$f":"SUBSTITUTE(PROPER('Update School Info Here'!I19),\"'S\",\"'s\")&\"     \"&'Update School Info Here'!J19","v":"Winnipeg     R3E0B5"},null,16,{"$f":"W16&\" - \"&V16","v":"Brandon - Crocus Plains Regional Secondary"},null,16,"Louis Riel",null,null,null,null,null,null,null,null,null,"Crocus Plains Regional Secondary","Brandon"]
[null,null,17,{"$f":"SUBSTITUTE(PROPER('Update School Info Here'!E20),\"'S\",\"'s\")","v":"Gonzaga Middle School"},{"$f":"SUBSTITUTE(PROPER('Update School Info Here'!F20),\"'S\",\"'s\")","v":"174 Maple Street North     "},{"$f":"SUBSTITUTE(PROPER('Update School Info Here'!I20),\"'S\",\"'s\")&\"     \"&'Update School Info Here'!J20","v":"Winnipeg     R2W3L4"},null,17,{"$f":"W17&\" - \"&V17","v":"Brandon - Earl Oxford School"},null,17,"Mountain View",null,null,null,null,null,null,null,null,null,"Earl Oxford School","Brandon"]
[1,{"$f":"IF(Lang=1,B25,B31)","v":"2022-09-30"},18,{"$f":"SUBSTITUTE(PROPER('Update School Info Here'!E21),\"'S\",\"'s\")","v":"Gray Academy Of Jewish Education"},{"$f":"SUBSTITUTE(PROPER('Update School Info Here'!F21),\"'S\",\"'s\")","v":"100 - 123 Doncaster Street     "},{"$f":"SUBSTITUTE(PROPER('Update School Info Here'!I21),\"'S\",\"'s\")&\"     \"&'Update School Info Here'!J21","v":"Winnipeg     R3N2B4"},null,18,{"$f":"W18&\" - \"&V18","v":"Brandon - École Harrison"},null,18,"Mystery Lake",null,null,null,null,null,null,null,null,null,"École Harrison","Brandon"]
[2,{"$f":"IF(Lang=1,B26,B32)","v":"2023-09-30"},19,{"$f":"SUBSTITUTE(PROPER('Update School Info Here'!E22),\"'S\",\"'s\")","v":"Green Acres Colony High School"},{"$f":"SUBSTITUTE(PROPER('Update School Info Here'!F22),\"'S\",\"'s\")","v":"Box 190     "},{"$f":"SUBSTITUTE(PROPER('Update School Info Here'!I22),\"'S\",\"'s\")&\"     \"&'Update School Info Here'!J22","v":"Wawanesa     R0K2G0"},null,19,{"$f":"W19&\" - \"&V19","v":"Brandon - George Fitton School"},null,19,"Park West",null,null,null,null,null,null,null,null,null,"George Fitton School","Brandon"]
[3,{"$f":"IF(Lang=1,B27,B33)","v":"2024-09-30"},20,{"$f":"SUBSTITUTE(PROPER('Update School Info Here'!E23),\"'S\",\"'s\")","v":"H. B. Community School"},{"$f":"SUBSTITUTE(PROPER('Update School Info Here'!F23),\"'S\",\"'s\")","v":"Box 40     "},{"$f":"SUBSTITUTE(PROPER('Update School Info Here'!I23),\"'S\",\"'s\")&\"     \"&'Update School Info Here'!J23","v":"Macgregor     R0H0R0"},null,20,{"$f":"W20&\" - \"&V20","v":"Brandon - Green Acres School"},null,20,"Pembina Trails",null,null,null,null,null,null,null,null,null,"Green Acres School","Brandon"]
[4,{"$f":"IF(Lang=1,B28,B34)","v":"2025-09-30"},21,{"$f":"SUBSTITUTE(PROPER('Update School Info Here'!E24),\"'S\",\"'s\")","v":"Holy Cross School"},{"$f":"SUBSTITUTE(PROPER('Update School Info Here'!F24),\"'S\",\"'s\")","v":"300 Dubuc Street     "},{"$f":"SUBSTITUTE(PROPER('Update School Info Here'!I24),\"'S\",\"'s\")&\"     \"&'Update School Info Here'!J24","v":"Winnipeg     R2H1E4"},null,21,{"$f":"W21&\" - \"&V21","v":"Brandon - J. R. Reid School"},null,21,"Pine Creek",null,null,null,null,null,null,null,null,null,"J. R. Reid School","Brandon"]
[5,{"$f":"IF(Lang=1,B29,B35)","v":"2026-09-30"},22,{"$f":"SUBSTITUTE(PROPER('Update School Info Here'!E25),\"'S\",\"'s\")","v":"Holy Ghost School"},{"$f":"SUBSTITUTE(PROPER('Update School Info Here'!F25),\"'S\",\"'s\")","v":"319 Selkirk Avenue     "},{"$f":"SUBSTITUTE(PROPER('Update School Info Here'!I25),\"'S\",\"'s\")&\"     \"&'Update School Info Here'!J25","v":"Winnipeg     R2W2L8"},null,22,{"$f":"W22&\" - \"&V22","v":"Brandon - King George School"},null,22,"Portage La Prairie",null,null,null,null,null,null,null,null,null,"King George School","Brandon"]
[null,null,23,{"$f":"SUBSTITUTE(PROPER('Update School Info Here'!E26),\"'S\",\"'s\")","v":"Immaculate Heart Of Mary School"},{"$f":"SUBSTITUTE(PROPER('Update School Info Here'!F26),\"'S\",\"'s\")","v":"650 Flora Avenue     "},{"$f":"SUBSTITUTE(PROPER('Update School Info Here'!I26),\"'S\",\"'s\")&\"     \"&'Update School Info Here'!J26","v":"Winnipeg     R2W2S5"},null,23,{"$f":"W23&\" - \"&V23","v":"Brandon - Kirkcaldy Heights School"},null,23,"Prairie Rose",null,null,null,null,null,null,null,null,null,"Kirkcaldy Heights School","Brandon"]
[null,null,24,{"$f":"SUBSTITUTE(PROPER('Update School Info Here'!E27),\"'S\",\"'s\")","v":"Immanuel Christian School"},{"$f":"SUBSTITUTE(PROPER('Update School Info Here'!F27),\"'S\",\"'s\")","v":"215 Rougeau Avenue     "},{"$f":"SUBSTITUTE(PROPER('Update School Info Here'!I27),\"'S\",\"'s\")&\"     \"&'Update School Info Here'!J27","v":"Winnipeg     R2C3Z9"},null,24,{"$f":"W24&\" - \"&V24","v":"Brandon - Linden Lanes School"},null,24,"Prairie Spirit",null,null,null,null,null,null,null,null,null,"Linden Lanes School","Brandon"]
[null,"2022-09-30",25,{"$f":"SUBSTITUTE(PROPER('Update School Info Here'!E28),\"'S\",\"'s\")","v":"Inspired Explorations Learning Community"},{"$f":"SUBSTITUTE(PROPER('Update School Info Here'!F28),\"'S\",\"'s\")","v":"Unit A - 5905 Roblin Blvd     "},{"$f":"SUBSTITUTE(PROPER('Update School Info Here'!I28),\"'S\",\"'s\")&\"     \"&'Update School Info Here'!J28","v":"Winnipeg     R3R0G8"},null,25,{"$f":"W25&\" - \"&V25","v":"Brandon - Maryland Park School"},null,25,"Red River Valley",null,null,null,null,null,null,null,null,null,"Maryland Park School","Brandon"]
[null,"2023-09-30",26,{"$f":"SUBSTITUTE(PROPER('Update School Info Here'!E29),\"'S\",\"'s\")","v":"Iqra Islamic School"},{"$f":"SUBSTITUTE(PROPER('Update School Info Here'!F29),\"'S\",\"'s\")","v":"404 Webb Place     "},{"$f":"SUBSTITUTE(PROPER('Update School Info Here'!I29),\"'S\",\"'s\")&\"     \"&'Update School Info Here'!J29","v":"Winnipeg     R3B3J4"},null,26,{"$f":"W26&\" - \"&V26","v":"Brandon - Meadows School"},null,26,"River East Transcona",null,null,null,null,null,null,null,null,null,"Meadows School","Brandon"]
[null,"2024-09-30",27,{"$f":"SUBSTITUTE(PROPER('Update School Info Here'!E30),\"'S\",\"'s\")","v":"Kola Community School"},{"$f":"SUBSTITUTE(PROPER('Update School Info Here'!F30),\"'S\",\"'s\")","v":"Box 553     "},{"$f":"SUBSTITUTE(PROPER('Update School Info Here'!I30),\"'S\",\"'s\")&\"     \"&'Update School Info Here'!J30","v":"Kola     R0M1B0"},null,27,{"$f":"W27&\" - \"&V27","v":"Brandon - Neelin High"},null,27,"Rolling River",null,null,null,null,null,null,null,null,null,"Neelin High","Brandon"]
[null,"2025-09-30",28,{"$f":"SUBSTITUTE(PROPER('Update School Info Here'!E31),\"'S\",\"'s\")","v":"Lakeside Christian School"},{"$f":"SUBSTITUTE(PROPER('Update School Info Here'!F31),\"'S\",\"'s\")","v":"Box 894     237 Hammond Street"},{"$f":"SUBSTITUTE(PROPER('Update School Info Here'!I31),\"'S\",\"'s\")&\"     \"&'Update School Info Here'!J31","v":"Killarney     R0K1G0"},null,28,{"$f":"W28&\" - \"&V28","v":"Brandon - New Era School"},null,28,"Seine River",null,null,null,null,null,null,null,null,null,"New Era School","Brandon"]
[null,"2026-09-30",29,{"$f":"SUBSTITUTE(PROPER('Update School Info Here'!E32),\"'S\",\"'s\")","v":"Linden Christian School"},{"$f":"SUBSTITUTE(PROPER('Update School Info Here'!F32),\"'S\",\"'s\")","v":"877 Wilkes Avenue     "},{"$f":"SUBSTITUTE(PROPER('Update School Info Here'!I32),\"'S\",\"'s\")&\"     \"&'Update School Info Here'!J32","v":"Winnipeg     R3P1B8"},null,29,{"$f":"W29&\" - \"&V29","v":"Brandon - O'Kelly School"},null,29,"Seven Oaks",null,null,null,null,null,null,null,null,null,"O'Kelly School","Brandon"]
[null,null,30,{"$f":"SUBSTITUTE(PROPER('Update School Info Here'!E33),\"'S\",\"'s\")","v":"Mennonite Brethren Collegiate Inst."},{"$f":"SUBSTITUTE(PROPER('Update School Info Here'!F33),\"'S\",\"'s\")","v":"173 Talbot Avenue     "},{"$f":"SUBSTITUTE(PROPER('Update School Info Here'!I33),\"'S\",\"'s\")&\"     \"&'Update School Info Here'!J33","v":"Winnipeg     R2L0P6"},null,30,{"$f":"W30&\" - \"&V30","v":"Brandon - Prairie Hope High School"},null,30,"Southwest Horizon",null,null,null,null,null,null,null,null,null,"Prairie Hope High School","Brandon"]
[null,"30 Septembre 2022",31,{"$f":"SUBSTITUTE(PROPER('Update School Info Here'!E34),\"'S\",\"'s\")","v":"Mennonite Collegiate Institute"},{"$f":"SUBSTITUTE(PROPER('Update School Info Here'!F34),\"'S\",\"'s\")","v":"Box 250     466 Mary Street"},{"$f":"SUBSTITUTE(PROPER('Update School Info Here'!I34),\"'S\",\"'s\")&\"     \"&'Update School Info Here'!J34","v":"Gretna     R0G0V0"},null,31,{"$f":"W31&\" - \"&V31","v":"Brandon - Riverheights School"},null,31,"St James-Assiniboia",null,null,null,null,null,null,null,null,null,"Riverheights School","Brandon"]
[null,"30 Septembre 2023",32,{"$f":"SUBSTITUTE(PROPER('Update School Info Here'!E35),\"'S\",\"'s\")","v":"Montessori Learning Centres (Riverview)"},{"$f":"SUBSTITUTE(PROPER('Update School Info Here'!F35),\"'S\",\"'s\")","v":"170 Ashland Avenue     "},{"$f":"SUBSTITUTE(PROPER('Update School Info Here'!I35),\"'S\",\"'s\")&\"     \"&'Update School Info Here'!J35","v":"Winnipeg     R3L1L1"},null,32,{"$f":"W32&\" - \"&V32","v":"Brandon - Riverview School"},null,32,"Sunrise",null,null,null,null,null,null,null,null,null,"Riverview School","Brandon"]
[null,"30 Septembre 2024",33,{"$f":"SUBSTITUTE(PROPER('Update School Info Here'!E36),\"'S\",\"'s\")","v":"Morweena Christian School"},{"$f":"SUBSTITUTE(PROPER('Update School Info Here'!F36),\"'S\",\"'s\")","v":"Box 1030     "},{"$f":"SUBSTITUTE(PROPER('Update School Info Here'!I36),\"'S\",\"'s\")&\"     \"&'Update School Info Here'!J36","v":"Arborg     R0C0A0"},null,33,{"$f":"W33&\" - \"&V33","v":"Brandon - Spring Valley Colony School"},null,33,"Swan Valley",null,null,null,null,null,null,null,null,null,"Spring Valley Colony School","Brandon"]
[null,"30 Septembre 2025",34,{"$f":"SUBSTITUTE(PROPER('Update School Info Here'!E37),\"'S\",\"'s\")","v":"Northern Shield Academy"},{"$f":"SUBSTITUTE(PROPER('Update School Info Here'!F37),\"'S\",\"'s\")","v":"619 - 4Th Street East     Box 1309"},{"$f":"SUBSTITUTE(PROPER('Update School Info Here'!I37),\"'S\",\"'s\")&\"     \"&'Update School Info Here'!J37","v":"Stonewall     R0C2Z0"},null,34,{"$f":"W34&\" - \"&V34","v":"Brandon - St. Augustine School"},null,34,"Turtle Mountain",null,null,null,null,null,null,null,null,null,"St. Augustine School","Brandon"]
[null,"30 Septembre 2026",35,{"$f":"SUBSTITUTE(PROPER('Update School Info Here'!E38),\"'S\",\"'s\")","v":"Nova Montessori"},{"$f":"SUBSTITUTE(PROPER('Update School Info Here'!F38),\"'S\",\"'s\")","v":"C-3311 Pembina Highway     "},{"$f":"SUBSTITUTE(PROPER('Update School Info Here'!I38),\"'S\",\"'s\")&\"     \"&'Update School Info Here'!J38","v":"Winnipeg     R3V1T7"},null,35,{"$f":"W35&\" - \"&V35","v":"Brandon - Valleyview Centennial School"},null,35,"Turtle River",null,null,null,null,null,null,null,null,null,"Valleyview Centennial School","Brandon"]
[null,null,36,{"$f":"SUBSTITUTE(PROPER('Update School Info Here'!E39),\"'S\",\"'s\")","v":"Odanah Colony School"},{"$f":"SUBSTITUTE(PROPER('Update School Info Here'!F39),\"'S\",\"'s\")","v":"Box 990     "},{"$f":"SUBSTITUTE(PROPER('Update School Info Here'!I39),\"'S\",\"'s\")&\"     \"&'Update School Info Here'!J39","v":"Minnedosa     R0J1E0"},null,36,{"$f":"W36&\" - \"&V36","v":"Brandon - Vincent Massey High"},null,36,"Western",null,null,null,null,null,null,null,null,null,"Vincent Massey High","Brandon"]
[null,null,37,{"$f":"SUBSTITUTE(PROPER('Update School Info Here'!E40),\"'S\",\"'s\")","v":"Oholei Torah School"},{"$f":"SUBSTITUTE(PROPER('Update School Info Here'!F40),\"'S\",\"'s\")","v":"1845 Mathers Avenue     "},{"$f":"SUBSTITUTE(PROPER('Update School Info Here'!I40),\"'S\",\"'s\")&\"     \"&'Update School Info Here'!J40","v":"Winnipeg     R3N0N2"},null,37,{"$f":"W37&\" - \"&V37","v":"Brandon - Waverly Park School"},null,37,"Whiteshell",null,null,null,null,null,null,null,null,null,"Waverly Park School","Brandon"]
[null,null,38,{"$f":"SUBSTITUTE(PROPER('Update School Info Here'!E41),\"'S\",\"'s\")","v":"Our Lady Of Victory School"},{"$f":"SUBSTITUTE(PROPER('Update School Info Here'!F41),\"'S\",\"'s\")","v":"249 Arnold Avenue     "},{"$f":"SUBSTITUTE(PROPER('Update School Info Here'!I41),\"'S\",\"'s\")&\"     \"&'Update School Info Here'!J41","v":"Winnipeg     R3L0W4"},null,38,{"$f":"W38&\" - \"&V38","v":"Fort La Bosse - Boundary Lane Colony School"},null,38,"Winnipeg",null,null,null,null,null,null,null,null,null,"Boundary Lane Colony School","Fort La Bosse"]
[null,null,39,{"$f":"SUBSTITUTE(PROPER('Update School Info Here'!E42),\"'S\",\"'s\")","v":"Pine Creek School"},{"$f":"SUBSTITUTE(PROPER('Update School Info Here'!F42),\"'S\",\"'s\")","v":"Pine Creek Colony     Box 370"},{"$f":"SUBSTITUTE(PROPER('Update School Info Here'!I42),\"'S\",\"'s\")&\"     \"&'Update School Info Here'!J42","v":"Austin     R0H0C0"},null,39,{"$f":"W39&\" - \"&V39","v":"Fort La Bosse - Elkhorn School"},null,null,null,null,null,null,null,null,null,null,null,null,"Elkhorn School","Fort La Bosse"]
[null,null,40,{"$f":"SUBSTITUTE(PROPER('Update School Info Here'!E43),\"'S\",\"'s\")","v":"Poplar Point Colony School"},{"$f":"SUBSTITUTE(PROPER('Update School Info Here'!F43),\"'S\",\"'s\")","v":"Box 910     "},{"$f":"SUBSTITUTE(PROPER('Update School Info Here'!I43),\"'S\",\"'s\")&\"     \"&'Update School Info Here'!J43","v":"Portage La Prairie     R1N3C4"},null,40,{"$f":"W40&\" - \"&V40","v":"Fort La Bosse - Goulter School"},null,null,null,null,null,null,null,null,null,null,null,null,"Goulter School","Fort La Bosse"]
[null,null,41,{"$f":"SUBSTITUTE(PROPER('Update School Info Here'!E44),\"'S\",\"'s\")","v":"Prairie Central Adventist Academy"},{"$f":"SUBSTITUTE(PROPER('Update School Info Here'!F44),\"'S\",\"'s\")","v":"56 Grey Street     "},{"$f":"SUBSTITUTE(PROPER('Update School Info Here'!I44),\"'S\",\"'s\")&\"     \"&'Update School Info Here'!J44","v":"Winnipeg     R2L1V3"},null,41,{"$f":"W41&\" - \"&V41","v":"Fort La Bosse - Kola School"},null,null,null,null,null,null,null,null,null,null,null,null,"Kola School","Fort La Bosse"]
[null,null,42,{"$f":"SUBSTITUTE(PROPER('Update School Info Here'!E45),\"'S\",\"'s\")","v":"Shawenim Abinoojii School"},{"$f":"SUBSTITUTE(PROPER('Update School Info Here'!F45),\"'S\",\"'s\")","v":"323-181 Higgins Avenue     "},{"$f":"SUBSTITUTE(PROPER('Update School Info Here'!I45),\"'S\",\"'s\")&\"     \"&'Update School Info Here'!J45","v":"Winnipeg     R2B3G1"},null,42,{"$f":"W42&\" - \"&V42","v":"Fort La Bosse - Mary Montgomery School"},null,null,null,null,null,null,null,null,null,null,null,null,"Mary Montgomery School","Fort La Bosse"]
[null,null,43,{"$f":"SUBSTITUTE(PROPER('Update School Info Here'!E46),\"'S\",\"'s\")","v":"Silverwinds School"},{"$f":"SUBSTITUTE(PROPER('Update School Info Here'!F46),\"'S\",\"'s\")","v":"Box 130     "},{"$f":"SUBSTITUTE(PROPER('Update School Info Here'!I46),\"'S\",\"'s\")&\"     \"&'Update School Info Here'!J46","v":"Sperling     R0G2M0"},null,43,{"$f":"W43&\" - \"&V43","v":"Fort La Bosse - Oak Lake Community School"},null,null,null,null,null,null,null,null,null,null,null,null,"Oak Lake Community School","Fort La Bosse"]
[null,null,44,{"$f":"SUBSTITUTE(PROPER('Update School Info Here'!E47),\"'S\",\"'s\")","v":"Springs Christian Academy"},{"$f":"SUBSTITUTE(PROPER('Update School Info Here'!F47),\"'S\",\"'s\")","v":"261 Youville Street     "},{"$f":"SUBSTITUTE(PROPER('Update School Info Here'!I47),\"'S\",\"'s\")&\"     \"&'Update School Info Here'!J47","v":"Winnipeg     R2H2S7"},null,44,{"$f":"W44&\" - \"&V44","v":"Fort La Bosse - Plainview Colony School"},null,null,null,null,null,null,null,null,null,null,null,null,"Plainview Colony School","Fort La Bosse"]
[null,null,45,{"$f":"SUBSTITUTE(PROPER('Update School Info Here'!E48),\"'S\",\"'s\")","v":"St. Aidan's Christian School"},{"$f":"SUBSTITUTE(PROPER('Update School Info Here'!F48),\"'S\",\"'s\")","v":"418 Aberdeen Avenue     "},{"$f":"SUBSTITUTE(PROPER('Update School Info Here'!I48),\"'S\",\"'s\")&\"     \"&'Update School Info Here'!J48","v":"Winnipeg     R2W1V7"},null,45,{"$f":"W45&\" - \"&V45","v":"Fort La Bosse - Reston School"},null,null,null,null,null,null,null,null,null,null,null,null,"Reston School","Fort La Bosse"]
[null,null,46,{"$f":"SUBSTITUTE(PROPER('Update School Info Here'!E49),\"'S\",\"'s\")","v":"St. Alphonsus School"},{"$f":"SUBSTITUTE(PROPER('Update School Info Here'!F49),\"'S\",\"'s\")","v":"343 Munroe Avenue     "},{"$f":"SUBSTITUTE(PROPER('Update School Info Here'!I49),\"'S\",\"'s\")&\"     \"&'Update School Info Here'!J49","v":"Winnipeg     R2K1H2"},null,46,{"$f":"W46&\" - \"&V46","v":"Fort La Bosse - Virden Collegiate"},null,null,null,null,null,null,null,null,null,null,null,null,"Virden Collegiate","Fort La Bosse"]
[null,null,47,{"$f":"SUBSTITUTE(PROPER('Update School Info Here'!E50),\"'S\",\"'s\")","v":"St. Boniface Diocesan High School"},{"$f":"SUBSTITUTE(PROPER('Update School Info Here'!F50),\"'S\",\"'s\")","v":"282 Dubuc Street     "},{"$f":"SUBSTITUTE(PROPER('Update School Info Here'!I50),\"'S\",\"'s\")&\"     \"&'Update School Info Here'!J50","v":"Winnipeg     R2H1E4"},null,47,{"$f":"W47&\" - \"&V47","v":"Fort La Bosse - Virden Junior High"},null,null,null,null,null,null,null,null,null,null,null,null,"Virden Junior High","Fort La Bosse"]
[null,null,48,{"$f":"SUBSTITUTE(PROPER('Update School Info Here'!E51),\"'S\",\"'s\")","v":"St. Charles Interparochial School"},{"$f":"SUBSTITUTE(PROPER('Update School Info Here'!F51),\"'S\",\"'s\")","v":"331 St. Charles Street     "},{"$f":"SUBSTITUTE(PROPER('Update School Info Here'!I51),\"'S\",\"'s\")&\"     \"&'Update School Info Here'!J51","v":"Winnipeg     R3K1T6"},null,48,{"$f":"W48&\" - \"&V48","v":"Louis Riel - Archwood School"},null,null,null,null,null,null,null,null,null,null,null,null,"Archwood School","Louis Riel"]
[null,null,49,{"$f":"SUBSTITUTE(PROPER('Update School Info Here'!E52),\"'S\",\"'s\")","v":"St. Edward's School"},{"$f":"SUBSTITUTE(PROPER('Update School Info Here'!F52),\"'S\",\"'s\")","v":"836 Arlington Street     "},{"$f":"SUBSTITUTE(PROPER('Update School Info Here'!I52),\"'S\",\"'s\")&\"     \"&'Update School Info Here'!J52","v":"Winnipeg     R3E2E4"},null,49,{"$f":"W49&\" - \"&V49","v":"Louis Riel - Collège Béliveau"},null,null,null,null,null,null,null,null,null,null,null,null,"Collège Béliveau","Louis Riel"]
[null,null,50,{"$f":"SUBSTITUTE(PROPER('Update School Info Here'!E53),\"'S\",\"'s\")","v":"St. Emile School"},{"$f":"SUBSTITUTE(PROPER('Update School Info Here'!F53),\"'S\",\"'s\")","v":"552 St. Anne's Road     "},{"$f":"SUBSTITUTE(PROPER('Update School Info Here'!I53),\"'S\",\"'s\")&\"     \"&'Update School Info Here'!J53","v":"Winnipeg     R2M3G4"},null,50,{"$f":"W50&\" - \"&V50","v":"Louis Riel - Collège Jeanne-Sauvé"},null,null,null,null,null,null,null,null,null,null,null,null,"Collège Jeanne-Sauvé","Louis Riel"]
[null,null,51,{"$f":"SUBSTITUTE(PROPER('Update School Info Here'!E54),\"'S\",\"'s\")","v":"St. Gerard School"},{"$f":"SUBSTITUTE(PROPER('Update School Info Here'!F54),\"'S\",\"'s\")","v":"40 Foster Street     "},{"$f":"SUBSTITUTE(PROPER('Update School Info Here'!I54),\"'S\",\"'s\")&\"     \"&'Update School Info Here'!J54","v":"Winnipeg     R2L1V7"},null,51,{"$f":"W51&\" - \"&V51","v":"Louis Riel - Dakota Collegiate"},null,null,null,null,null,null,null,null,null,null,null,null,"Dakota Collegiate","Louis Riel"]
[null,null,52,{"$f":"SUBSTITUTE(PROPER('Update School Info Here'!E55),\"'S\",\"'s\")","v":"St. Ignatius School"},{"$f":"SUBSTITUTE(PROPER('Update School Info Here'!F55),\"'S\",\"'s\")","v":"239 Harrow Street     "},{"$f":"SUBSTITUTE(PROPER('Update School Info Here'!I55),\"'S\",\"'s\")&\"     \"&'Update School Info Here'!J55","v":"Winnipeg     R3M2Y3"},null,52,{"$f":"W52&\" - \"&V52","v":"Louis Riel - Darwin School"},null,null,null,null,null,null,null,null,null,null,null,null,"Darwin School","Louis Riel"]
[null,null,53,{"$f":"SUBSTITUTE(PROPER('Update School Info Here'!E56),\"'S\",\"'s\")","v":"St. John Brebeuf School"},{"$f":"SUBSTITUTE(PROPER('Update School Info Here'!F56),\"'S\",\"'s\")","v":"605 Renfrew Street     "},{"$f":"SUBSTITUTE(PROPER('Update School Info Here'!I56),\"'S\",\"'s\")&\"     \"&'Update School Info Here'!J56","v":"Winnipeg     R3N1J8"},null,53,{"$f":"W53&\" - \"&V53","v":"Louis Riel - Dr. D. W. Penner School"},null,null,null,null,null,null,null,null,null,null,null,null,"Dr. D. W. Penner School","Louis Riel"]
[null,null,54,{"$f":"SUBSTITUTE(PROPER('Update School Info Here'!E57),\"'S\",\"'s\")","v":"St. John's-Ravenscourt School"},{"$f":"SUBSTITUTE(PROPER('Update School Info Here'!F57),\"'S\",\"'s\")","v":"400 South Drive     "},{"$f":"SUBSTITUTE(PROPER('Update School Info Here'!I57),\"'S\",\"'s\")&\"     \"&'Update School Info Here'!J57","v":"Winnipeg     R3T3K5"},null,54,{"$f":"W54&\" - \"&V54","v":"Louis Riel - École George Mcdowell"},null,null,null,null,null,null,null,null,null,null,null,null,"École George Mcdowell","Louis Riel"]
[null,null,55,{"$f":"SUBSTITUTE(PROPER('Update School Info Here'!E58),\"'S\",\"'s\")","v":"St. Joseph The Worker School"},{"$f":"SUBSTITUTE(PROPER('Update School Info Here'!F58),\"'S\",\"'s\")","v":"505 Brewster Street     "},{"$f":"SUBSTITUTE(PROPER('Update School Info Here'!I58),\"'S\",\"'s\")&\"     \"&'Update School Info Here'!J58","v":"Winnipeg     R2C2W6"},null,55,{"$f":"W55&\" - \"&V55","v":"Louis Riel - École Guyot"},null,null,null,null,null,null,null,null,null,null,null,null,"École Guyot","Louis Riel"]
[null,null,56,{"$f":"SUBSTITUTE(PROPER('Update School Info Here'!E59),\"'S\",\"'s\")","v":"St. Mary's Academy"},{"$f":"SUBSTITUTE(PROPER('Update School Info Here'!F59),\"'S\",\"'s\")","v":"550 Wellington Crescent     "},{"$f":"SUBSTITUTE(PROPER('Update School Info Here'!I59),\"'S\",\"'s\")&\"     \"&'Update School Info Here'!J59","v":"Winnipeg     R3M0C1"},null,56,{"$f":"W56&\" - \"&V56","v":"Louis Riel - École Henri-Bergeron"},null,null,null,null,null,null,null,null,null,null,null,null,"École Henri-Bergeron","Louis Riel"]
[null,null,57,{"$f":"SUBSTITUTE(PROPER('Update School Info Here'!E60),\"'S\",\"'s\")","v":"St. Maurice School"},{"$f":"SUBSTITUTE(PROPER('Update School Info Here'!F60),\"'S\",\"'s\")","v":"1639 Pembina Highway     "},{"$f":"SUBSTITUTE(PROPER('Update School Info Here'!I60),\"'S\",\"'s\")&\"     \"&'Update School Info Here'!J60","v":"Winnipeg     R3T2G6"},null,57,{"$f":"W57&\" - \"&V57","v":"Louis Riel - École Howden"},null,null,null,null,null,null,null,null,null,null,null,null,"École Howden","Louis Riel"]
[null,null,58,{"$f":"SUBSTITUTE(PROPER('Update School Info Here'!E61),\"'S\",\"'s\")","v":"St. Paul's High School"},{"$f":"SUBSTITUTE(PROPER('Update School Info Here'!F61),\"'S\",\"'s\")","v":"2200 Grant Avenue     "},{"$f":"SUBSTITUTE(PROPER('Update School Info Here'!I61),\"'S\",\"'s\")&\"     \"&'Update School Info Here'!J61","v":"Winnipeg     R3P0P8"},null,58,{"$f":"W58&\" - \"&V58","v":"Louis Riel - École Julie-Riel"},null,null,null,null,null,null,null,null,null,null,null,null,"École Julie-Riel","Louis Riel"]
[null,null,59,{"$f":"SUBSTITUTE(PROPER('Update School Info Here'!E62),\"'S\",\"'s\")","v":"Steinbach Christian School"},{"$f":"SUBSTITUTE(PROPER('Update School Info Here'!F62),\"'S\",\"'s\")","v":"50 Pth 12 North     "},{"$f":"SUBSTITUTE(PROPER('Update School Info Here'!I62),\"'S\",\"'s\")&\"     \"&'Update School Info Here'!J62","v":"Steinbach     R5G1T4"},null,59,{"$f":"W59&\" - \"&V59","v":"Louis Riel - École Marie-Anne-Gaboury"},null,null,null,null,null,null,null,null,null,null,null,null,"École Marie-Anne-Gaboury","Louis Riel"]
[null,null,60,{"$f":"SUBSTITUTE(PROPER('Update School Info Here'!E63),\"'S\",\"'s\")","v":"The King's School"},{"$f":"SUBSTITUTE(PROPER('Update School Info Here'!F63),\"'S\",\"'s\")","v":"745 Kapelus Drive     "},{"$f":"SUBSTITUTE(PROPER('Update School Info Here'!I63),\"'S\",\"'s\")&\"     \"&'Update School Info Here'!J63","v":"West St. Paul     R4A5A4"},null,60,{"$f":"W60&\" - \"&V60","v":"Louis Riel - École Provencher"},null,null,null,null,null,null,null,null,null,null,null,null,"École Provencher","Louis Riel"]
[null,null,61,{"$f":"SUBSTITUTE(PROPER('Update School Info Here'!E64),\"'S\",\"'s\")","v":"The Laureate Academy"},{"$f":"SUBSTITUTE(PROPER('Update School Info Here'!F64),\"'S\",\"'s\")","v":"100 Villa Maria Place     "},{"$f":"SUBSTITUTE(PROPER('Update School Info Here'!I64),\"'S\",\"'s\")&\"     \"&'Update School Info Here'!J64","v":"Winnipeg     R3V1A9"},null,61,{"$f":"W61&\" - \"&V61","v":"Louis Riel - École Sage Creek School"},null,null,null,null,null,null,null,null,null,null,null,null,"École Sage Creek School","Louis Riel"]
[null,null,62,{"$f":"SUBSTITUTE(PROPER('Update School Info Here'!E65),\"'S\",\"'s\")","v":"University Of Winnipeg Collegiate"},{"$f":"SUBSTITUTE(PROPER('Update School Info Here'!F65),\"'S\",\"'s\")","v":"515 Portage Avenue     "},{"$f":"SUBSTITUTE(PROPER('Update School Info Here'!I65),\"'S\",\"'s\")&\"     \"&'Update School Info Here'!J65","v":"Winnipeg     R3B2E9"},null,62,{"$f":"W62&\" - \"&V62","v":"Louis Riel - École Saint-Germain"},null,null,null,null,null,null,null,null,null,null,null,null,"École Saint-Germain","Louis Riel"]
[null,null,63,{"$f":"SUBSTITUTE(PROPER('Update School Info Here'!E66),\"'S\",\"'s\")","v":"Westgate Mennonite Collegiate"},{"$f":"SUBSTITUTE(PROPER('Update School Info Here'!F66),\"'S\",\"'s\")","v":"86 West Gate     "},{"$f":"SUBSTITUTE(PROPER('Update School Info Here'!I66),\"'S\",\"'s\")&\"     \"&'Update School Info Here'!J66","v":"Winnipeg     R3E2E1"},null,63,{"$f":"W63&\" - \"&V63","v":"Louis Riel - École Van Belleghem"},null,null,null,null,null,null,null,null,null,null,null,null,"École Van Belleghem","Louis Riel"]
[null,null,64,{"$f":"SUBSTITUTE(PROPER('Update School Info Here'!E67),\"'S\",\"'s\")","v":"Westpark School"},{"$f":"SUBSTITUTE(PROPER('Update School Info Here'!F67),\"'S\",\"'s\")","v":"2375B Saskatchewan Avenue W     "},{"$f":"SUBSTITUTE(PROPER('Update School Info Here'!I67),\"'S\",\"'s\")&\"     \"&'Update School Info Here'!J67","v":"Portage La Prairie     R1N4A6"},null,64,{"$f":"W64&\" - \"&V64","v":"Louis Riel - École Varennes"},null,null,null,null,null,null,null,null,null,null,null,null,"École Varennes","Louis Riel"]
[null,null,65,{"$f":"SUBSTITUTE(PROPER('Update School Info Here'!E68),\"'S\",\"'s\")","v":"Wingham Hb School"},{"$f":"SUBSTITUTE(PROPER('Update School Info Here'!F68),\"'S\",\"'s\")","v":"Box 219     "},{"$f":"SUBSTITUTE(PROPER('Update School Info Here'!I68),\"'S\",\"'s\")&\"     \"&'Update School Info Here'!J68","v":"Elm Creek     R0G0N0"},null,65,{"$f":"W65&\" - \"&V65","v":"Louis Riel - Frontenac School"},null,null,null,null,null,null,null,null,null,null,null,null,"Frontenac School","Louis Riel"]
[null,null,66,{"$f":"SUBSTITUTE(PROPER('Update School Info Here'!E69),\"'S\",\"'s\")","v":"Winnipeg Mennonite Elem & Middle Schools"},{"$f":"SUBSTITUTE(PROPER('Update School Info Here'!F69),\"'S\",\"'s\")","v":"250 Bedson Street     "},{"$f":"SUBSTITUTE(PROPER('Update School Info Here'!I69),\"'S\",\"'s\")&\"     \"&'Update School Info Here'!J69","v":"Winnipeg     R3K1R7"},null,66,{"$f":"W66&\" - \"&V66","v":"Louis Riel - General Vanier School"},null,null,null,null,null,null,null,null,null,null,null,null,"General Vanier School","Louis Riel"]
[null,null,67,{"$f":"SUBSTITUTE(PROPER('Update School Info Here'!E70),\"'S\",\"'s\")","v":"Winnipeg South Academy"},{"$f":"SUBSTITUTE(PROPER('Update School Info Here'!F70),\"'S\",\"'s\")","v":"870 Scotland Ave.     "},null,null,{"$f":"+H66+1","v":67},{"$f":"W67&\" - \"&V67","v":"Louis Riel - Glenlawn Collegiate"},null,null,null,null,null,null,null,null,null,null,null,null,"Glenlawn Collegiate","Louis Riel"]
[null,null,68,{"$f":"SUBSTITUTE(PROPER('Update School Info Here'!E71),\"'S\",\"'s\")","v":""},null,null,null,68,{"$f":"W68&\" - \"&V68","v":"Louis Riel - Glenwood School"},null,null,null,null,null,null,null,null,null,null,null,null,"Glenwood School","Louis Riel"]
[null,null,69,{"$f":"SUBSTITUTE(PROPER('Update School Info Here'!E72),\"'S\",\"'s\")","v":""},null,null,null,69,{"$f":"W69&\" - \"&V69","v":"Louis Riel - H. S. Paul School"},null,null,null,null,null,null,null,null,null,null,null,null,"H. S. Paul School","Louis Riel"]
[null,null,70,null,null,null,null,70,{"$f":"W70&\" - \"&V70","v":"Louis Riel - Hastings School"},null,null,null,null,null,null,null,null,null,null,null,null,"Hastings School","Louis Riel"]
[null,null,71,null,null,null,null,71,{"$f":"W71&\" - \"&V71","v":"Louis Riel - Highbury School"},null,null,null,null,null,null,null,null,null,null,null,null,"Highbury School","Louis Riel"]
[null,null,72,null,null,null,null,72,{"$f":"W72&\" - \"&V72","v":"Louis Riel - Island Lakes Community School"},null,null,null,null,null,null,null,null,null,null,null,null,"Island Lakes Community School","Louis Riel"]
[null,null,73,null,null,null,null,73,{"$f":"W73&\" - \"&V73","v":"Louis Riel - J. H. Bruns Collegiate"},null,null,null,null,null,null,null,null,null,null,null,null,"J. H. Bruns Collegiate","Louis Riel"]
[null,null,null,null,null,null,null,74,{"$f":"W74&\" - \"&V74","v":"Louis Riel - Lavallee School"},null,null,null,null,null,null,null,null,null,null,null,null,"Lavallee School","Louis Riel"]
[null,null,null,null,null,null,null,75,{"$f":"W75&\" - \"&V75","v":"Louis Riel - Louis Riel S.D. Arts And Technology Ctr."},null,null,null,null,null,null,null,null,null,null,null,null,"Louis Riel S.D. Arts And Technology Ctr.","Louis Riel"]
[null,null,null,null,null,null,null,76,{"$f":"W76&\" - \"&V76","v":"Louis Riel - Marion School"},null,null,null,null,null,null,null,null,null,null,null,null,"Marion School","Louis Riel"]
[null,null,null,null,null,null,null,77,{"$f":"W77&\" - \"&V77","v":"Louis Riel - Minnetonka School"},null,null,null,null,null,null,null,null,null,null,null,null,"Minnetonka School","Louis Riel"]
[null,null,null,null,null,null,null,78,{"$f":"W78&\" - \"&V78","v":"Louis Riel - Nelson Mcintyre Collegiate"},null,null,null,null,null,null,null,null,null,null,null,null,"Nelson Mcintyre Collegiate","Louis Riel"]
[null,null,null,null,null,null,null,79,{"$f":"W79&\" - \"&V79","v":"Louis Riel - Niakwa Place School"},null,null,null,null,null,null,null,null,null,null,null,null,"Niakwa Place School","Louis Riel"]
[null,null,null,null,null,null,null,80,{"$f":"W80&\" - \"&V80","v":"Louis Riel - Nordale School"},null,null,null,null,null,null,null,null,null,null,null,null,"Nordale School","Louis Riel"]
[null,null,null,null,null,null,null,81,{"$f":"W81&\" - \"&V81","v":"Louis Riel - Samuel Burland School"},null,null,null,null,null,null,null,null,null,null,null,null,"Samuel Burland School","Louis Riel"]
[null,null,null,null,null,null,null,82,{"$f":"W82&\" - \"&V82","v":"Louis Riel - Shamrock School"},null,null,null,null,null,null,null,null,null,null,null,null,"Shamrock School","Louis Riel"]
[null,null,null,null,null,null,null,83,{"$f":"W83&\" - \"&V83","v":"Louis Riel - St. George School"},null,null,null,null,null,null,null,null,null,null,null,null,"St. George School","Louis Riel"]
[null,null,null,null,null,null,null,84,{"$f":"W84&\" - \"&V84","v":"Louis Riel - Victor H.L. Wyatt School"},null,null,null,null,null,null,null,null,null,null,null,null,"Victor H.L. Wyatt School","Louis Riel"]
[null,null,null,null,null,null,null,85,{"$f":"W85&\" - \"&V85","v":"Louis Riel - Victor Mager School"},null,null,null,null,null,null,null,null,null,null,null,null,"Victor Mager School","Louis Riel"]
[null,null,null,null,null,null,null,86,{"$f":"W86&\" - \"&V86","v":"Louis Riel - Windsor Park Collegiate"},null,null,null,null,null,null,null,null,null,null,null,null,"Windsor Park Collegiate","Louis Riel"]
[null,null,null,null,null,null,null,87,{"$f":"W87&\" - \"&V87","v":"Louis Riel - Windsor School"},null,null,null,null,null,null,null,null,null,null,null,null,"Windsor School","Louis Riel"]
[null,null,null,null,null,null,null,88,{"$f":"W88&\" - \"&V88","v":"Evergreen - Arborg Collegiate"},null,null,null,null,null,null,null,null,null,null,null,null,"Arborg Collegiate","Evergreen"]
[null,null,null,null,null,null,null,89,{"$f":"W89&\" - \"&V89","v":"Evergreen - Arborg Early/Middle Years School"},null,null,null,null,null,null,null,null,null,null,null,null,"Arborg Early/Middle Years School","Evergreen"]
[null,null,null,null,null,null,null,90,{"$f":"W90&\" - \"&V90","v":"Evergreen - Dr. George Johnson Middle School"},null,null,null,null,null,null,null,null,null,null,null,null,"Dr. George Johnson Middle School","Evergreen"]
[null,null,null,null,null,null,null,91,{"$f":"W91&\" - \"&V91","v":"Evergreen - Gimli High School"},null,null,null,null,null,null,null,null,null,null,null,null,"Gimli High School","Evergreen"]
[null,null,null,null,null,null,null,92,{"$f":"W92&\" - \"&V92","v":"Evergreen - Riverton Collegiate"},null,null,null,null,null,null,null,null,null,null,null,null,"Riverton Collegiate","Evergreen"]
[null,null,null,null,null,null,null,93,{"$f":"W93&\" - \"&V93","v":"Evergreen - Riverton Early Middle Years School"},null,null,null,null,null,null,null,null,null,null,null,null,"Riverton Early Middle Years School","Evergreen"]
[null,null,null,null,null,null,null,94,{"$f":"W94&\" - \"&V94","v":"Evergreen - Sigurbjorg Stefansson Early School"},null,null,null,null,null,null,null,null,null,null,null,null,"Sigurbjorg Stefansson Early School","Evergreen"]
[null,null,null,null,null,null,null,95,{"$f":"W95&\" - \"&V95","v":"Evergreen - Winnipeg Beach School"},null,null,null,null,null,null,null,null,null,null,null,null,"Winnipeg Beach School","Evergreen"]
[null,null,null,null,null,null,null,96,{"$f":"W96&\" - \"&V96","v":"Pembina Trails - Acadia Junior High School"},null,null,null,null,null,null,null,null,null,null,null,null,"Acadia Junior High School","Pembina Trails"]
[null,null,null,null,null,null,null,97,{"$f":"W97&\" - \"&V97","v":"Pembina Trails - Arthur A. Leach Junior High"},null,null,null,null,null,null,null,null,null,null,null,null,"Arthur A. Leach Junior High","Pembina Trails"]
[null,null,null,null,null,null,null,98,{"$f":"W98&\" - \"&V98","v":"Pembina Trails - Bairdmore School"},null,null,null,null,null,null,null,null,null,null,null,null,"Bairdmore School","Pembina Trails"]
[null,null,null,null,null,null,null,99,{"$f":"W99&\" - \"&V99","v":"Pembina Trails - Beaumont School"},null,null,null,null,null,null,null,null,null,null,null,null,"Beaumont School","Pembina Trails"]
[null,null,null,null,null,null,null,100,{"$f":"W100&\" - \"&V100","v":"Pembina Trails - Beaverlodge School"},null,null,null,null,null,null,null,null,null,null,null,null,"Beaverlodge School","Pembina Trails"]
[null,null,null,null,null,null,null,101,{"$f":"W101&\" - \"&V101","v":"Pembina Trails - Bison Run School"},null,null,null,null,null,null,null,null,null,null,null,null,"Bison Run School","Pembina Trails"]
[null,null,null,null,null,null,null,102,{"$f":"W102&\" - \"&V102","v":"Pembina Trails - Chancellor Elementary"},null,null,null,null,null,null,null,null,null,null,null,null,"Chancellor Elementary","Pembina Trails"]
[null,null,null,null,null,null,null,103,{"$f":"W103&\" - \"&V103","v":"Pembina Trails - Dalhousie School"},null,null,null,null,null,null,null,null,null,null,null,null,"Dalhousie School","Pembina Trails"]
[null,null,null,null,null,null,null,104,{"$f":"W104&\" - \"&V104","v":"Pembina Trails - École Charleswood School"},null,null,null,null,null,null,null,null,null,null,null,null,"École Charleswood School","Pembina Trails"]
[null,null,null,null,null,null,null,105,{"$f":"W105&\" - \"&V105","v":"Pembina Trails - École Crane"},null,null,null,null,null,null,null,null,null,null,null,null,"École Crane","Pembina Trails"]
[null,null,null,null,null,null,null,106,{"$f":"W106&\" - \"&V106","v":"Pembina Trails - École Dieppe"},null,null,null,null,null,null,null,null,null,null,null,null,"École Dieppe","Pembina Trails"]
[null,null,null,null,null,null,null,107,{"$f":"W107&\" - \"&V107","v":"Pembina Trails - École Saint-Avila"},null,null,null,null,null,null,null,null,null,null,null,null,"École Saint-Avila","Pembina Trails"]
[null,null,null,null,null,null,null,108,{"$f":"W108&\" - \"&V108","v":"Pembina Trails - École South Pointe School"},null,null,null,null,null,null,null,null,null,null,null,null,"École South Pointe School","Pembina Trails"]
[null,null,null,null,null,null,null,109,{"$f":"W109&\" - \"&V109","v":"Pembina Trails - École Tuxedo Park"},null,null,null,null,null,null,null,null,null,null,null,null,"École Tuxedo Park","Pembina Trails"]
[null,null,null,null,null,null,null,110,{"$f":"W110&\" - \"&V110","v":"Pembina Trails - École Viscount Alexander"},null,null,null,null,null,null,null,null,null,null,null,null,"École Viscount Alexander","Pembina Trails"]
[null,null,null,null,null,null,null,111,{"$f":"W111&\" - \"&V111","v":"Pembina Trails - Fort Richmond Collegiate"},null,null,null,null,null,null,null,null,null,null,null,null,"Fort Richmond Collegiate","Pembina Trails"]
[null,null,null,null,null,null,null,112,{"$f":"W112&\" - \"&V112","v":"Pembina Trails - General Byng School"},null,null,null,null,null,null,null,null,null,null,null,null,"General Byng School","Pembina Trails"]
[null,null,null,null,null,null,null,113,{"$f":"W113&\" - \"&V113","v":"Pembina Trails - Henry G. Izatt Middle School"},null,null,null,null,null,null,null,null,null,null,null,null,"Henry G. Izatt Middle School","Pembina Trails"]
[null,null,null,null,null,null,null,114,{"$f":"W114&\" - \"&V114","v":"Pembina Trails - Laidlaw School"},null,null,null,null,null,null,null,null,null,null,null,null,"Laidlaw School","Pembina Trails"]
[null,null,null,null,null,null,null,115,{"$f":"W115&\" - \"&V115","v":"Pembina Trails - Linden Meadows School"},null,null,null,null,null,null,null,null,null,null,null,null,"Linden Meadows School","Pembina Trails"]
[null,null,null,null,null,null,null,116,{"$f":"W116&\" - \"&V116","v":"Pembina Trails - Oak Park High"},null,null,null,null,null,null,null,null,null,null,null,null,"Oak Park High","Pembina Trails"]
[null,null,null,null,null,null,null,117,{"$f":"W117&\" - \"&V117","v":"Pembina Trails - Oakenwald School"},null,null,null,null,null,null,null,null,null,null,null,null,"Oakenwald School","Pembina Trails"]
[null,null,null,null,null,null,null,118,{"$f":"W118&\" - \"&V118","v":"Pembina Trails - Pacific Junction School"},null,null,null,null,null,null,null,null,null,null,null,null,"Pacific Junction School","Pembina Trails"]
[null,null,null,null,null,null,null,119,{"$f":"W119&\" - \"&V119","v":"Pembina Trails - Pembina Trails Alternative High School"},null,null,null,null,null,null,null,null,null,null,null,null,"Pembina Trails Alternative High School","Pembina Trails"]
[null,null,null,null,null,null,null,120,{"$f":"W120&\" - \"&V120","v":"Pembina Trails - Pembina Trails Collegiate"},null,null,null,null,null,null,null,null,null,null,null,null,"Pembina Trails Collegiate","Pembina Trails"]
[null,null,null,null,null,null,null,121,{"$f":"W121&\" - \"&V121","v":"Pembina Trails - Pembina Trails Early College School"},null,null,null,null,null,null,null,null,null,null,null,null,"Pembina Trails Early College School","Pembina Trails"]
[null,null,null,null,null,null,null,122,{"$f":"W122&\" - \"&V122","v":"Pembina Trails - Prairie Sunrise School"},null,null,null,null,null,null,null,null,null,null,null,null,"Prairie Sunrise School","Pembina Trails"]
[null,null,null,null,null,null,null,123,{"$f":"W123&\" - \"&V123","v":"Pembina Trails - R.H.G. Bonnycastle School"},null,null,null,null,null,null,null,null,null,null,null,null,"R.H.G. Bonnycastle School","Pembina Trails"]
[null,null,null,null,null,null,null,124,{"$f":"W124&\" - \"&V124","v":"Pembina Trails - Ralph Maybank School"},null,null,null,null,null,null,null,null,null,null,null,null,"Ralph Maybank School","Pembina Trails"]
[null,null,null,null,null,null,null,125,{"$f":"W125&\" - \"&V125","v":"Pembina Trails - River West Park School"},null,null,null,null,null,null,null,null,null,null,null,null,"River West Park School","Pembina Trails"]
[null,null,null,null,null,null,null,126,{"$f":"W126&\" - \"&V126","v":"Pembina Trails - Royal School"},null,null,null,null,null,null,null,null,null,null,null,null,"Royal School","Pembina Trails"]
[null,null,null,null,null,null,null,127,{"$f":"W127&\" - \"&V127","v":"Pembina Trails - Shaftesbury High"},null,null,null,null,null,null,null,null,null,null,null,null,"Shaftesbury High","Pembina Trails"]
[null,null,null,null,null,null,null,128,{"$f":"W128&\" - \"&V128","v":"Pembina Trails - Van Walleghem School"},null,null,null,null,null,null,null,null,null,null,null,null,"Van Walleghem School","Pembina Trails"]
[null,null,null,null,null,null,null,129,{"$f":"W129&\" - \"&V129","v":"Pembina Trails - Vincent Massey Collegiate"},null,null,null,null,null,null,null,null,null,null,null,null,"Vincent Massey Collegiate","Pembina Trails"]
[null,null,null,null,null,null,null,130,{"$f":"W130&\" - \"&V130","v":"Pembina Trails - Westdale Junior High"},null,null,null,null,null,null,null,null,null,null,null,null,"Westdale Junior High","Pembina Trails"]
[null,null,null,null,null,null,null,{"$f":"+H130+1","v":131},{"$f":"W131&\" - \"&V131","v":"Pembina Trails - Westgrove School"},null,null,null,null,null,null,null,null,null,null,null,null,"Westgrove School","Pembina Trails"]
[null,null,null,null,null,null,null,132,{"$f":"W132&\" - \"&V132","v":"Pembina Trails - Whyte Ridge Elementary"},null,null,null,null,null,null,null,null,null,null,null,null,"Whyte Ridge Elementary","Pembina Trails"]
[null,null,null,null,null,null,null,133,{"$f":"W133&\" - \"&V133","v":"Prairie Spririt - Baldur School"},null,null,null,null,null,null,null,null,null,null,null,null,"Baldur School","Prairie Spririt"]
[null,null,null,null,null,null,null,134,{"$f":"W134&\" - \"&V134","v":"Prairie Spririt - Boyne Valley School"},null,null,null,null,null,null,null,null,null,null,null,null,"Boyne Valley School","Prairie Spririt"]
[null,null,null,null,null,null,null,135,{"$f":"W135&\" - \"&V135","v":"Prairie Spririt - Cartwright School"},null,null,null,null,null,null,null,null,null,null,null,null,"Cartwright School","Prairie Spririt"]
[null,null,null,null,null,null,null,136,{"$f":"W136&\" - \"&V136","v":"Prairie Spririt - Crystal City Early Years School"},null,null,null,null,null,null,null,null,null,null,null,null,"Crystal City Early Years School","Prairie Spririt"]
[null,null,null,null,null,null,null,137,{"$f":"W137&\" - \"&V137","v":"Prairie Spririt - Evergreen Colony School"},null,null,null,null,null,null,null,null,null,null,null,null,"Evergreen Colony School","Prairie Spririt"]
[null,null,null,null,null,null,null,138,{"$f":"W138&\" - \"&V138","v":"Prairie Spririt - Fairholme Colony School"},null,null,null,null,null,null,null,null,null,null,null,null,"Fairholme Colony School","Prairie Spririt"]
[null,null,null,null,null,null,null,139,{"$f":"W139&\" - \"&V139","v":"Prairie Spririt - Glenboro School"},null,null,null,null,null,null,null,null,null,null,null,null,"Glenboro School","Prairie Spririt"]
[null,null,null,null,null,null,null,140,{"$f":"W140&\" - \"&V140","v":"Prairie Spririt - Harmony Colony School"},null,null,null,null,null,null,null,null,null,null,null,null,"Harmony Colony School","Prairie Spririt"]
[null,null,null,null,null,null,null,141,{"$f":"W141&\" - \"&V141","v":"Prairie Spririt - Holland Elementary"},null,null,null,null,null,null,null,null,null,null,null,null,"Holland Elementary","Prairie Spririt"]
[null,null,null,null,null,null,null,142,{"$f":"W142&\" - \"&V142","v":"Prairie Spririt - Kamsley School"},null,null,null,null,null,null,null,null,null,null,null,null,"Kamsley School","Prairie Spririt"]
[null,null,null,null,null,null,null,143,{"$f":"W143&\" - \"&V143","v":"Prairie Spririt - Manitou Elementary"},null,null,null,null,null,null,null,null,null,null,null,null,"Manitou Elementary","Prairie Spririt"]
[null,null,null,null,null,null,null,144,{"$f":"W144&\" - \"&V144","v":"Prairie Spririt - Nellie Mcclung Collegiate"},null,null,null,null,null,null,null,null,null,null,null,null,"Nellie Mcclung Collegiate","Prairie Spririt"]
[null,null,null,null,null,null,null,145,{"$f":"W145&\" - \"&V145","v":"Prairie Spririt - New Rosedale School"},null,null,null,null,null,null,null,null,null,null,null,null,"New Rosedale School","Prairie Spririt"]
[null,null,null,null,null,null,null,146,{"$f":"W146&\" - \"&V146","v":"Prairie Spririt - Pilot Mound School"},null,null,null,null,null,null,null,null,null,null,null,null,"Pilot Mound School","Prairie Spririt"]
[null,null,null,null,null,null,null,147,{"$f":"W147&\" - \"&V147","v":"Prairie Spririt - Prairie Mountain Elementary School"},null,null,null,null,null,null,null,null,null,null,null,null,"Prairie Mountain Elementary School","Prairie Spririt"]
[null,null,null,null,null,null,null,148,{"$f":"W148&\" - \"&V148","v":"Prairie Spririt - Prairie Mountain High School"},null,null,null,null,null,null,null,null,null,null,null,null,"Prairie Mountain High School","Prairie Spririt"]
[null,null,null,null,null,null,null,149,{"$f":"W149&\" - \"&V149","v":"Prairie Spririt - Sandy Bank School"},null,null,null,null,null,null,null,null,null,null,null,null,"Sandy Bank School","Prairie Spririt"]
[null,null,null,null,null,null,null,150,{"$f":"W150&\" - \"&V150","v":"Prairie Spririt - Shady Lane School"},null,null,null,null,null,null,null,null,null,null,null,null,"Shady Lane School","Prairie Spririt"]
[null,null,null,null,null,null,null,151,{"$f":"W151&\" - \"&V151","v":"Prairie Spririt - Shamrock School"},null,null,null,null,null,null,null,null,null,null,null,null,"Shamrock School","Prairie Spririt"]
[null,null,null,null,null,null,null,152,{"$f":"W152&\" - \"&V152","v":"Prairie Spririt - St. Claude School Complex"},null,null,null,null,null,null,null,null,null,null,null,null,"St. Claude School Complex","Prairie Spririt"]
[null,null,null,null,null,null,null,153,{"$f":"W153&\" - \"&V153","v":"Prairie Spririt - Ste. Marie School"},null,null,null,null,null,null,null,null,null,null,null,null,"Ste. Marie School","Prairie Spririt"]
[null,null,null,null,null,null,null,154,{"$f":"W154&\" - \"&V154","v":"Prairie Spririt - Thomas Greenway Middle Years School"},null,null,null,null,null,null,null,null,null,null,null,null,"Thomas Greenway Middle Years School","Prairie Spririt"]
[null,null,null,null,null,null,null,155,{"$f":"W155&\" - \"&V155","v":"Prairie Spririt - Treherne Collegiate"},null,null,null,null,null,null,null,null,null,null,null,null,"Treherne Collegiate","Prairie Spririt"]
[null,null,null,null,null,null,null,156,{"$f":"W156&\" - \"&V156","v":"Prairie Spririt - Treherne Elementary"},null,null,null,null,null,null,null,null,null,null,null,null,"Treherne Elementary","Prairie Spririt"]
[null,null,null,null,null,null,null,157,{"$f":"W157&\" - \"&V157","v":"Prairie Spririt - Valleyview School"},null,null,null,null,null,null,null,null,null,null,null,null,"Valleyview School","Prairie Spririt"]
[null,null,null,null,null,null,null,158,{"$f":"W158&\" - \"&V158","v":"Prairie Spririt - West Valley School"},null,null,null,null,null,null,null,null,null,null,null,null,"West Valley School","Prairie Spririt"]
[null,null,null,null,null,null,null,159,{"$f":"W159&\" - \"&V159","v":"Prairie Spririt - Whistling Wind School"},null,null,null,null,null,null,null,null,null,null,null,null,"Whistling Wind School","Prairie Spririt"]
[null,null,null,null,null,null,null,160,{"$f":"W160&\" - \"&V160","v":"Prairie Spririt - Willow Creek Colony School"},null,null,null,null,null,null,null,null,null,null,null,null,"Willow Creek Colony School","Prairie Spririt"]
[null,null,null,null,null,null,null,161,{"$f":"W161&\" - \"&V161","v":"Prairie Spririt - Windy Bay School"},null,null,null,null,null,null,null,null,null,null,null,null,"Windy Bay School","Prairie Spririt"]
[null,null,null,null,null,null,null,162,{"$f":"W162&\" - \"&V162","v":"River East Transcona - Angus Mckay School"},null,null,null,null,null,null,null,null,null,null,null,null,"Angus Mckay School","River East Transcona"]
[null,null,null,null,null,null,null,163,{"$f":"W163&\" - \"&V163","v":"River East Transcona - Arthur Day Middle School"},null,null,null,null,null,null,null,null,null,null,null,null,"Arthur Day Middle School","River East Transcona"]
[null,null,null,null,null,null,null,164,{"$f":"W164&\" - \"&V164","v":"River East Transcona - Bernie Wolfe School"},null,null,null,null,null,null,null,null,null,null,null,null,"Bernie Wolfe School","River East Transcona"]
[null,null,null,null,null,null,null,165,{"$f":"W165&\" - \"&V165","v":"River East Transcona - Bertrun E. Glavin School"},null,null,null,null,null,null,null,null,null,null,null,null,"Bertrun E. Glavin School","River East Transcona"]
[null,null,null,null,null,null,null,166,{"$f":"W166&\" - \"&V166","v":"River East Transcona - Bird's Hill School"},null,null,null,null,null,null,null,null,null,null,null,null,"Bird's Hill School","River East Transcona"]
[null,null,null,null,null,null,null,167,{"$f":"W167&\" - \"&V167","v":"River East Transcona - Chief Peguis Middle School"},null,null,null,null,null,null,null,null,null,null,null,null,"Chief Peguis Middle School","River East Transcona"]
[null,null,null,null,null,null,null,168,{"$f":"W168&\" - \"&V168","v":"River East Transcona - Collège Miles Macdonell Collegiate"},null,null,null,null,null,null,null,null,null,null,null,null,"Collège Miles Macdonell Collegiate","River East Transcona"]
[null,null,null,null,null,null,null,169,{"$f":"W169&\" - \"&V169","v":"River East Transcona - Collège Pierre-Elliott-Trudeau"},null,null,null,null,null,null,null,null,null,null,null,null,"Collège Pierre-Elliott-Trudeau","River East Transcona"]
[null,null,null,null,null,null,null,170,{"$f":"W170&\" - \"&V170","v":"River East Transcona - Donwood School"},null,null,null,null,null,null,null,null,null,null,null,null,"Donwood School","River East Transcona"]
[null,null,null,null,null,null,null,171,{"$f":"W171&\" - \"&V171","v":"River East Transcona - Dr. F.W.L. Hamilton School"},null,null,null,null,null,null,null,null,null,null,null,null,"Dr. F.W.L. Hamilton School","River East Transcona"]
[null,null,null,null,null,null,null,172,{"$f":"W172&\" - \"&V172","v":"River East Transcona - École Centrale"},null,null,null,null,null,null,null,null,null,null,null,null,"École Centrale","River East Transcona"]
[null,null,null,null,null,null,null,173,{"$f":"W173&\" - \"&V173","v":"River East Transcona - École John Henderson Middle School"},null,null,null,null,null,null,null,null,null,null,null,null,"École John Henderson Middle School","River East Transcona"]
[null,null,null,null,null,null,null,174,{"$f":"W174&\" - \"&V174","v":"River East Transcona - École Margaret-Underhill"},null,null,null,null,null,null,null,null,null,null,null,null,"École Margaret-Underhill","River East Transcona"]
[null,null,null,null,null,null,null,175,{"$f":"W175&\" - \"&V175","v":"River East Transcona - École Munroe Middle School"},null,null,null,null,null,null,null,null,null,null,null,null,"École Munroe Middle School","River East Transcona"]
[null,null,null,null,null,null,null,176,{"$f":"W176&\" - \"&V176","v":"River East Transcona - École Neil Campbell School"},null,null,null,null,null,null,null,null,null,null,null,null,"École Neil Campbell School","River East Transcona"]
[null,null,null,null,null,null,null,177,{"$f":"W177&\" - \"&V177","v":"River East Transcona - École Regent Park"},null,null,null,null,null,null,null,null,null,null,null,null,"École Regent Park","River East Transcona"]
[null,null,null,null,null,null,null,178,{"$f":"W178&\" - \"&V178","v":"River East Transcona - École Salisbury Morse Place School"},null,null,null,null,null,null,null,null,null,null,null,null,"École Salisbury Morse Place School","River East Transcona"]
[null,null,null,null,null,null,null,179,{"$f":"W179&\" - \"&V179","v":"River East Transcona - École Springfield Heights School"},null,null,null,null,null,null,null,null,null,null,null,null,"École Springfield Heights School","River East Transcona"]
[null,null,null,null,null,null,null,180,{"$f":"W180&\" - \"&V180","v":"River East Transcona - École Sun Valley School"},null,null,null,null,null,null,null,null,null,null,null,null,"École Sun Valley School","River East Transcona"]
[null,null,null,null,null,null,null,181,{"$f":"W181&\" - \"&V181","v":"River East Transcona - Emerson School"},null,null,null,null,null,null,null,null,null,null,null,null,"Emerson School","River East Transcona"]
[null,null,null,null,null,null,null,182,{"$f":"W182&\" - \"&V182","v":"River East Transcona - Hampstead School"},null,null,null,null,null,null,null,null,null,null,null,null,"Hampstead School","River East Transcona"]
[null,null,null,null,null,null,null,183,{"$f":"W183&\" - \"&V183","v":"River East Transcona - Harold Hatcher School"},null,null,null,null,null,null,null,null,null,null,null,null,"Harold Hatcher School","River East Transcona"]
[null,null,null,null,null,null,null,184,{"$f":"W184&\" - \"&V184","v":"River East Transcona - John De Graff School"},null,null,null,null,null,null,null,null,null,null,null,null,"John De Graff School","River East Transcona"]
[null,null,null,null,null,null,null,185,{"$f":"W185&\" - \"&V185","v":"River East Transcona - John G. Stewart School"},null,null,null,null,null,null,null,null,null,null,null,null,"John G. Stewart School","River East Transcona"]
[null,null,null,null,null,null,null,186,{"$f":"W186&\" - \"&V186","v":"River East Transcona - John Pritchard School"},null,null,null,null,null,null,null,null,null,null,null,null,"John Pritchard School","River East Transcona"]
[null,null,null,null,null,null,null,187,{"$f":"W187&\" - \"&V187","v":"River East Transcona - John W. Gunn Middle School"},null,null,null,null,null,null,null,null,null,null,null,null,"John W. Gunn Middle School","River East Transcona"]
[null,null,null,null,null,null,null,188,{"$f":"W188&\" - \"&V188","v":"River East Transcona - Joseph Teres School"},null,null,null,null,null,null,null,null,null,null,null,null,"Joseph Teres School","River East Transcona"]
[null,null,null,null,null,null,null,189,{"$f":"W189&\" - \"&V189","v":"River East Transcona - Kildonan-East Collegiate"},null,null,null,null,null,null,null,null,null,null,null,null,"Kildonan-East Collegiate","River East Transcona"]
[null,null,null,null,null,null,null,190,{"$f":"W190&\" - \"&V190","v":"River East Transcona - Lord Wolseley School"},null,null,null,null,null,null,null,null,null,null,null,null,"Lord Wolseley School","River East Transcona"]
[null,null,null,null,null,null,null,191,{"$f":"W191&\" - \"&V191","v":"River East Transcona - Maple Leaf School"},null,null,null,null,null,null,null,null,null,null,null,null,"Maple Leaf School","River East Transcona"]
[null,null,null,null,null,null,null,192,{"$f":"W192&\" - \"&V192","v":"River East Transcona - Murdoch Mackay Collegiate"},null,null,null,null,null,null,null,null,null,null,null,null,"Murdoch Mackay Collegiate","River East Transcona"]
[null,null,null,null,null,null,null,193,{"$f":"W193&\" - \"&V193","v":"River East Transcona - Polson School"},null,null,null,null,null,null,null,null,null,null,null,null,"Polson School","River East Transcona"]
[null,null,null,null,null,null,null,194,{"$f":"W194&\" - \"&V194","v":"River East Transcona - Prince Edward School"},null,null,null,null,null,null,null,null,null,null,null,null,"Prince Edward School","River East Transcona"]
[null,null,null,null,null,null,null,{"$f":"+H194+1","v":195},{"$f":"W195&\" - \"&V195","v":"River East Transcona - Princess Margaret School"},null,null,null,null,null,null,null,null,null,null,null,null,"Princess Margaret School","River East Transcona"]
[null,null,null,null,null,null,null,196,{"$f":"W196&\" - \"&V196","v":"River East Transcona - Radisson School"},null,null,null,null,null,null,null,null,null,null,null,null,"Radisson School","River East Transcona"]
[null,null,null,null,null,null,null,197,{"$f":"W197&\" - \"&V197","v":"River East Transcona - River East Collegiate"},null,null,null,null,null,null,null,null,null,null,null,null,"River East Collegiate","River East Transcona"]
[null,null,null,null,null,null,null,198,{"$f":"W198&\" - \"&V198","v":"River East Transcona - Robert Andrews Middle School"},null,null,null,null,null,null,null,null,null,null,null,null,"Robert Andrews Middle School","River East Transcona"]
[null,null,null,null,null,null,null,199,{"$f":"W199&\" - \"&V199","v":"River East Transcona - Sherwood School"},null,null,null,null,null,null,null,null,null,null,null,null,"Sherwood School","River East Transcona"]
[null,null,null,null,null,null,null,200,{"$f":"W200&\" - \"&V200","v":"River East Transcona - Transcona Collegiate"},null,null,null,null,null,null,null,null,null,null,null,null,"Transcona Collegiate","River East Transcona"]
[null,null,null,null,null,null,null,201,{"$f":"W201&\" - \"&V201","v":"River East Transcona - Valley Gardens Middle School"},null,null,null,null,null,null,null,null,null,null,null,null,"Valley Gardens Middle School","River East Transcona"]
[null,null,null,null,null,null,null,202,{"$f":"W202&\" - \"&V202","v":"River East Transcona - Wayoata School"},null,null,null,null,null,null,null,null,null,null,null,null,"Wayoata School","River East Transcona"]
[null,null,null,null,null,null,null,203,{"$f":"W203&\" - \"&V203","v":"River East Transcona - Westview School"},null,null,null,null,null,null,null,null,null,null,null,null,"Westview School","River East Transcona"]
[null,null,null,null,null,null,null,204,{"$f":"W204&\" - \"&V204","v":"St James Assiniboia - Athlone School"},null,null,null,null,null,null,null,null,null,null,null,null,"Athlone School","St James Assiniboia"]
[null,null,null,null,null,null,null,205,{"$f":"W205&\" - \"&V205","v":"St James Assiniboia - Brooklands School"},null,null,null,null,null,null,null,null,null,null,null,null,"Brooklands School","St James Assiniboia"]
[null,null,null,null,null,null,null,206,{"$f":"W206&\" - \"&V206","v":"St James Assiniboia - Bruce Middle School"},null,null,null,null,null,null,null,null,null,null,null,null,"Bruce Middle School","St James Assiniboia"]
[null,null,null,null,null,null,null,207,{"$f":"W207&\" - \"&V207","v":"St James Assiniboia - Buchanan School"},null,null,null,null,null,null,null,null,null,null,null,null,"Buchanan School","St James Assiniboia"]
[null,null,null,null,null,null,null,208,{"$f":"W208&\" - \"&V208","v":"St James Assiniboia - Collège Sturgeon Heights Collegiate"},null,null,null,null,null,null,null,null,null,null,null,null,"Collège Sturgeon Heights Collegiate","St James Assiniboia"]
[null,null,null,null,null,null,null,209,{"$f":"W209&\" - \"&V209","v":"St James Assiniboia - Crestview School"},null,null,null,null,null,null,null,null,null,null,null,null,"Crestview School","St James Assiniboia"]
[null,null,null,null,null,null,null,210,{"$f":"W210&\" - \"&V210","v":"St James Assiniboia - École Assiniboine"},null,null,null,null,null,null,null,null,null,null,null,null,"École Assiniboine","St James Assiniboia"]
[null,null,null,null,null,null,null,211,{"$f":"W211&\" - \"&V211","v":"St James Assiniboia - École Bannatyne"},null,null,null,null,null,null,null,null,null,null,null,null,"École Bannatyne","St James Assiniboia"]
[null,null,null,null,null,null,null,212,{"$f":"W212&\" - \"&V212","v":"St James Assiniboia - École Ness"},null,null,null,null,null,null,null,null,null,null,null,null,"École Ness","St James Assiniboia"]
[null,null,null,null,null,null,null,213,{"$f":"W213&\" - \"&V213","v":"St James Assiniboia - École Robert-Browning"},null,null,null,null,null,null,null,null,null,null,null,null,"École Robert-Browning","St James Assiniboia"]
[null,null,null,null,null,null,null,214,{"$f":"W214&\" - \"&V214","v":"St James Assiniboia - École Voyageur"},null,null,null,null,null,null,null,null,null,null,null,null,"École Voyageur","St James Assiniboia"]
[null,null,null,null,null,null,null,215,{"$f":"W215&\" - \"&V215","v":"St James Assiniboia - George Waters Middle School"},null,null,null,null,null,null,null,null,null,null,null,null,"George Waters Middle School","St James Assiniboia"]
[null,null,null,null,null,null,null,216,{"$f":"W216&\" - \"&V216","v":"St James Assiniboia - Golden Gate Middle School"},null,null,null,null,null,null,null,null,null,null,null,null,"Golden Gate Middle School","St James Assiniboia"]
[null,null,null,null,null,null,null,217,{"$f":"W217&\" - \"&V217","v":"St James Assiniboia - Hedges Middle School"},null,null,null,null,null,null,null,null,null,null,null,null,"Hedges Middle School","St James Assiniboia"]
[null,null,null,null,null,null,null,218,{"$f":"W218&\" - \"&V218","v":"St James Assiniboia - Heritage School"},null,null,null,null,null,null,null,null,null,null,null,null,"Heritage School","St James Assiniboia"]
[null,null,null,null,null,null,null,219,{"$f":"W219&\" - \"&V219","v":"St James Assiniboia - Jameswood Alternative School"},null,null,null,null,null,null,null,null,null,null,null,null,"Jameswood Alternative School","St James Assiniboia"]
[null,null,null,null,null,null,null,220,{"$f":"W220&\" - \"&V220","v":"St James Assiniboia - John Taylor Collegiate"},null,null,null,null,null,null,null,null,null,null,null,null,"John Taylor Collegiate","St James Assiniboia"]
[null,null,null,null,null,null,null,221,{"$f":"W221&\" - \"&V221","v":"St James Assiniboia - Lakewood School"},null,null,null,null,null,null,null,null,null,null,null,null,"Lakewood School","St James Assiniboia"]
[null,null,null,null,null,null,null,222,{"$f":"W222&\" - \"&V222","v":"St James Assiniboia - Lincoln Middle School"},null,null,null,null,null,null,null,null,null,null,null,null,"Lincoln Middle School","St James Assiniboia"]
[null,null,null,null,null,null,null,223,{"$f":"W223&\" - \"&V223","v":"St James Assiniboia - Linwood School"},null,null,null,null,null,null,null,null,null,null,null,null,"Linwood School","St James Assiniboia"]
[null,null,null,null,null,null,null,224,{"$f":"W224&\" - \"&V224","v":"St James Assiniboia - Manitoba Remote Learning Support Centre"},null,null,null,null,null,null,null,null,null,null,null,null,"Manitoba Remote Learning Support Centre","St James Assiniboia"]
[null,null,null,null,null,null,null,225,{"$f":"W225&\" - \"&V225","v":"St James Assiniboia - Phoenix School"},null,null,null,null,null,null,null,null,null,null,null,null,"Phoenix School","St James Assiniboia"]
[null,null,null,null,null,null,null,226,{"$f":"W226&\" - \"&V226","v":"St James Assiniboia - Sansome School"},null,null,null,null,null,null,null,null,null,null,null,null,"Sansome School","St James Assiniboia"]
[null,null,null,null,null,null,null,227,{"$f":"W227&\" - \"&V227","v":"St James Assiniboia - St. James Collegiate"},null,null,null,null,null,null,null,null,null,null,null,null,"St. James Collegiate","St James Assiniboia"]
[null,null,null,null,null,null,null,228,{"$f":"W228&\" - \"&V228","v":"St James Assiniboia - Stevenson School"},null,null,null,null,null,null,null,null,null,null,null,null,"Stevenson School","St James Assiniboia"]
[null,null,null,null,null,null,null,229,{"$f":"W229&\" - \"&V229","v":"St James Assiniboia - Strathmillan School"},null,null,null,null,null,null,null,null,null,null,null,null,"Strathmillan School","St James Assiniboia"]
[null,null,null,null,null,null,null,230,{"$f":"W230&\" - \"&V230","v":"St James Assiniboia - Westwood Collegiate"},null,null,null,null,null,null,null,null,null,null,null,null,"Westwood Collegiate","St James Assiniboia"]
[null,null,null,null,null,null,null,231,{"$f":"W231&\" - \"&V231","v":"Turtle Mountain - Boissevain School"},null,null,null,null,null,null,null,null,null,null,null,null,"Boissevain School","Turtle Mountain"]
[null,null,null,null,null,null,null,232,{"$f":"W232&\" - \"&V232","v":"Turtle Mountain - Can Am Colony School"},null,null,null,null,null,null,null,null,null,null,null,null,"Can Am Colony School","Turtle Mountain"]
[null,null,null,null,null,null,null,233,{"$f":"W233&\" - \"&V233","v":"Turtle Mountain - Holmfield Colony School"},null,null,null,null,null,null,null,null,null,null,null,null,"Holmfield Colony School","Turtle Mountain"]
[null,null,null,null,null,null,null,234,{"$f":"W234&\" - \"&V234","v":"Turtle Mountain - Killarney School"},null,null,null,null,null,null,null,null,null,null,null,null,"Killarney School","Turtle Mountain"]
[null,null,null,null,null,null,null,235,{"$f":"W235&\" - \"&V235","v":"Turtle Mountain - Mayfair Colony School"},null,null,null,null,null,null,null,null,null,null,null,null,"Mayfair Colony School","Turtle Mountain"]
[null,null,null,null,null,null,null,236,{"$f":"W236&\" - \"&V236","v":"Turtle Mountain - Minto School"},null,null,null,null,null,null,null,null,null,null,null,null,"Minto School","Turtle Mountain"]
[null,null,null,null,null,null,null,237,{"$f":"W237&\" - \"&V237","v":"Turtle Mountain - Wellwood School"},null,null,null,null,null,null,null,null,null,null,null,null,"Wellwood School","Turtle Mountain"]
[null,null,null,null,null,null,null,238,{"$f":"W238&\" - \"&V238","v":"Winnipeg - Andrew Mynarski V.C. School"},null,null,null,null,null,null,null,null,null,null,null,null,"Andrew Mynarski V.C. School","Winnipeg"]
[null,null,null,null,null,null,null,239,{"$f":"W239&\" - \"&V239","v":"Winnipeg - Argyle Alternative High School"},null,null,null,null,null,null,null,null,null,null,null,null,"Argyle Alternative High School","Winnipeg"]
[null,null,null,null,null,null,null,240,{"$f":"W240&\" - \"&V240","v":"Winnipeg - Brock-Corydon School"},null,null,null,null,null,null,null,null,null,null,null,null,"Brock-Corydon School","Winnipeg"]
[null,null,null,null,null,null,null,241,{"$f":"W241&\" - \"&V241","v":"Winnipeg - Carpathia School"},null,null,null,null,null,null,null,null,null,null,null,null,"Carpathia School","Winnipeg"]
[null,null,null,null,null,null,null,242,{"$f":"W242&\" - \"&V242","v":"Winnipeg - Champlain School"},null,null,null,null,null,null,null,null,null,null,null,null,"Champlain School","Winnipeg"]
[null,null,null,null,null,null,null,243,{"$f":"W243&\" - \"&V243","v":"Winnipeg - Children Of The Earth High School"},null,null,null,null,null,null,null,null,null,null,null,null,"Children Of The Earth High School","Winnipeg"]
[null,null,null,null,null,null,null,244,{"$f":"W244&\" - \"&V244","v":"Winnipeg - Churchill High School"},null,null,null,null,null,null,null,null,null,null,null,null,"Churchill High School","Winnipeg"]
[null,null,null,null,null,null,null,245,{"$f":"W245&\" - \"&V245","v":"Winnipeg - Clifton School"},null,null,null,null,null,null,null,null,null,null,null,null,"Clifton School","Winnipeg"]
[null,null,null,null,null,null,null,246,{"$f":"W246&\" - \"&V246","v":"Winnipeg - Collège Churchill"},null,null,null,null,null,null,null,null,null,null,null,null,"Collège Churchill","Winnipeg"]
[null,null,null,null,null,null,null,247,{"$f":"W247&\" - \"&V247","v":"Winnipeg - Daniel Mcintyre Collegiate Institute"},null,null,null,null,null,null,null,null,null,null,null,null,"Daniel Mcintyre Collegiate Institute","Winnipeg"]
[null,null,null,null,null,null,null,248,{"$f":"W248&\" - \"&V248","v":"Winnipeg - David Livingstone School"},null,null,null,null,null,null,null,null,null,null,null,null,"David Livingstone School","Winnipeg"]
[null,null,null,null,null,null,null,249,{"$f":"W249&\" - \"&V249","v":"Winnipeg - Dufferin School"},null,null,null,null,null,null,null,null,null,null,null,null,"Dufferin School","Winnipeg"]
[null,null,null,null,null,null,null,250,{"$f":"W250&\" - \"&V250","v":"Winnipeg - Earl Grey School"},null,null,null,null,null,null,null,null,null,null,null,null,"Earl Grey School","Winnipeg"]
[null,null,null,null,null,null,null,251,{"$f":"W251&\" - \"&V251","v":"Winnipeg - École La Vérendrye"},null,null,null,null,null,null,null,null,null,null,null,null,"École La Vérendrye","Winnipeg"]
[null,null,null,null,null,null,null,252,{"$f":"W252&\" - \"&V252","v":"Winnipeg - École Lansdowne"},null,null,null,null,null,null,null,null,null,null,null,null,"École Lansdowne","Winnipeg"]
[null,null,null,null,null,null,null,253,{"$f":"W253&\" - \"&V253","v":"Winnipeg - École Sacré-Coeur"},null,null,null,null,null,null,null,null,null,null,null,null,"École Sacré-Coeur","Winnipeg"]
[null,null,null,null,null,null,null,254,{"$f":"W254&\" - \"&V254","v":"Winnipeg - École Secondaire Kelvin High School"},null,null,null,null,null,null,null,null,null,null,null,null,"École Secondaire Kelvin High School","Winnipeg"]
[null,null,null,null,null,null,null,255,{"$f":"W255&\" - \"&V255","v":"Winnipeg - École Secondaire Sisler High"},null,null,null,null,null,null,null,null,null,null,null,null,"École Secondaire Sisler High","Winnipeg"]
[null,null,null,null,null,null,null,256,{"$f":"W256&\" - \"&V256","v":"Winnipeg - École Sir William Osler"},null,null,null,null,null,null,null,null,null,null,null,null,"École Sir William Osler","Winnipeg"]
[null,null,null,null,null,null,null,257,{"$f":"W257&\" - \"&V257","v":"Winnipeg - École Waterford Springs School"},null,null,null,null,null,null,null,null,null,null,null,null,"École Waterford Springs School","Winnipeg"]
[null,null,null,null,null,null,null,258,{"$f":"W258&\" - \"&V258","v":"Winnipeg - Elmwood High"},null,null,null,null,null,null,null,null,null,null,null,null,"Elmwood High","Winnipeg"]
[null,null,null,null,null,null,null,{"$f":"+H258+1","v":259},{"$f":"W259&\" - \"&V259","v":"Winnipeg - Faraday School"},null,null,null,null,null,null,null,null,null,null,null,null,"Faraday School","Winnipeg"]
[null,null,null,null,null,null,null,260,{"$f":"W260&\" - \"&V260","v":"Winnipeg - Fort Rouge School"},null,null,null,null,null,null,null,null,null,null,null,null,"Fort Rouge School","Winnipeg"]
[null,null,null,null,null,null,null,261,{"$f":"W261&\" - \"&V261","v":"Winnipeg - Garden Grove School"},null,null,null,null,null,null,null,null,null,null,null,null,"Garden Grove School","Winnipeg"]
[null,null,null,null,null,null,null,262,{"$f":"W262&\" - \"&V262","v":"Winnipeg - General Wolfe School"},null,null,null,null,null,null,null,null,null,null,null,null,"General Wolfe School","Winnipeg"]
[null,null,null,null,null,null,null,263,{"$f":"W263&\" - \"&V263","v":"Winnipeg - George V School"},null,null,null,null,null,null,null,null,null,null,null,null,"George V School","Winnipeg"]
[null,null,null,null,null,null,null,264,{"$f":"W264&\" - \"&V264","v":"Winnipeg - Gladstone School"},null,null,null,null,null,null,null,null,null,null,null,null,"Gladstone School","Winnipeg"]
[null,null,null,null,null,null,null,265,{"$f":"W265&\" - \"&V265","v":"Winnipeg - Glenelm School"},null,null,null,null,null,null,null,null,null,null,null,null,"Glenelm School","Winnipeg"]
[null,null,null,null,null,null,null,266,{"$f":"W266&\" - \"&V266","v":"Winnipeg - Gordon Bell High School"},null,null,null,null,null,null,null,null,null,null,null,null,"Gordon Bell High School","Winnipeg"]
[null,null,null,null,null,null,null,267,{"$f":"W267&\" - \"&V267","v":"Winnipeg - Grant Park High School"},null,null,null,null,null,null,null,null,null,null,null,null,"Grant Park High School","Winnipeg"]
[null,null,null,null,null,null,null,268,{"$f":"W268&\" - \"&V268","v":"Winnipeg - Greenway School"},null,null,null,null,null,null,null,null,null,null,null,null,"Greenway School","Winnipeg"]
[null,null,null,null,null,null,null,269,{"$f":"W269&\" - \"&V269","v":"Winnipeg - Grosvenor School"},null,null,null,null,null,null,null,null,null,null,null,null,"Grosvenor School","Winnipeg"]
[null,null,null,null,null,null,null,270,{"$f":"W270&\" - \"&V270","v":"Winnipeg - Harrow School"},null,null,null,null,null,null,null,null,null,null,null,null,"Harrow School","Winnipeg"]
[null,null,null,null,null,null,null,271,{"$f":"W271&\" - \"&V271","v":"Winnipeg - Hugh John Macdonald School"},null,null,null,null,null,null,null,null,null,null,null,null,"Hugh John Macdonald School","Winnipeg"]
[null,null,null,null,null,null,null,272,{"$f":"W272&\" - \"&V272","v":"Winnipeg - Inkster School"},null,null,null,null,null,null,null,null,null,null,null,null,"Inkster School","Winnipeg"]
[null,null,null,null,null,null,null,273,{"$f":"W273&\" - \"&V273","v":"Winnipeg - Interdivisional Student Services"},null,null,null,null,null,null,null,null,null,null,null,null,"Interdivisional Student Services","Winnipeg"]
[null,null,null,null,null,null,null,274,{"$f":"W274&\" - \"&V274","v":"Winnipeg - Isaac Brock School"},null,null,null,null,null,null,null,null,null,null,null,null,"Isaac Brock School","Winnipeg"]
[null,null,null,null,null,null,null,275,{"$f":"W275&\" - \"&V275","v":"Winnipeg - Isaac Newton School"},null,null,null,null,null,null,null,null,null,null,null,null,"Isaac Newton School","Winnipeg"]
[null,null,null,null,null,null,null,276,{"$f":"W276&\" - \"&V276","v":"Winnipeg - J. B. Mitchell School"},null,null,null,null,null,null,null,null,null,null,null,null,"J. B. Mitchell School","Winnipeg"]
[null,null,null,null,null,null,null,277,{"$f":"W277&\" - \"&V277","v":"Winnipeg - John M. King School"},null,null,null,null,null,null,null,null,null,null,null,null,"John M. King School","Winnipeg"]
[null,null,null,null,null,null,null,278,{"$f":"W278&\" - \"&V278","v":"Winnipeg - Keewatin Prairie Community School"},null,null,null,null,null,null,null,null,null,null,null,null,"Keewatin Prairie Community School","Winnipeg"]
[null,null,null,null,null,null,null,279,{"$f":"W279&\" - \"&V279","v":"Winnipeg - Kent Road School"},null,null,null,null,null,null,null,null,null,null,null,null,"Kent Road School","Winnipeg"]
[null,null,null,null,null,null,null,280,{"$f":"W280&\" - \"&V280","v":"Winnipeg - King Edward Community School"},null,null,null,null,null,null,null,null,null,null,null,null,"King Edward Community School","Winnipeg"]
[null,null,null,null,null,null,null,281,{"$f":"W281&\" - \"&V281","v":"Winnipeg - Laura Secord School"},null,null,null,null,null,null,null,null,null,null,null,null,"Laura Secord School","Winnipeg"]
[null,null,null,null,null,null,null,282,{"$f":"W282&\" - \"&V282","v":"Winnipeg - Lord Nelson School"},null,null,null,null,null,null,null,null,null,null,null,null,"Lord Nelson School","Winnipeg"]
[null,null,null,null,null,null,null,283,{"$f":"W283&\" - \"&V283","v":"Winnipeg - Lord Roberts Community School"},null,null,null,null,null,null,null,null,null,null,null,null,"Lord Roberts Community School","Winnipeg"]
[null,null,null,null,null,null,null,284,{"$f":"W284&\" - \"&V284","v":"Winnipeg - Lord Selkirk School"},null,null,null,null,null,null,null,null,null,null,null,null,"Lord Selkirk School","Winnipeg"]
[null,null,null,null,null,null,null,285,{"$f":"W285&\" - \"&V285","v":"Winnipeg - Luxton School"},null,null,null,null,null,null,null,null,null,null,null,null,"Luxton School","Winnipeg"]
[null,null,null,null,null,null,null,286,{"$f":"W286&\" - \"&V286","v":"Winnipeg - Machray School"},null,null,null,null,null,null,null,null,null,null,null,null,"Machray School","Winnipeg"]
[null,null,null,null,null,null,null,287,{"$f":"W287&\" - \"&V287","v":"Winnipeg - Meadows West School"},null,null,null,null,null,null,null,null,null,null,null,null,"Meadows West School","Winnipeg"]
[null,null,null,null,null,null,null,288,{"$f":"W288&\" - \"&V288","v":"Winnipeg - Montcalm School"},null,null,null,null,null,null,null,null,null,null,null,null,"Montcalm School","Winnipeg"]
[null,null,null,null,null,null,null,289,{"$f":"W289&\" - \"&V289","v":"Winnipeg - Montrose School"},null,null,null,null,null,null,null,null,null,null,null,null,"Montrose School","Winnipeg"]
[null,null,null,null,null,null,null,290,{"$f":"W290&\" - \"&V290","v":"Winnipeg - Mulvey School"},null,null,null,null,null,null,null,null,null,null,null,null,"Mulvey School","Winnipeg"]
[null,null,null,null,null,null,null,291,{"$f":"W291&\" - \"&V291","v":"Winnipeg - Niji Mahkwa School"},null,null,null,null,null,null,null,null,null,null,null,null,"Niji Mahkwa School","Winnipeg"]
[null,null,null,null,null,null,null,292,{"$f":"W292&\" - \"&V292","v":"Winnipeg - Norquay School"},null,null,null,null,null,null,null,null,null,null,null,null,"Norquay School","Winnipeg"]
[null,null,null,null,null,null,null,293,{"$f":"W293&\" - \"&V293","v":"Winnipeg - Pinkham School"},null,null,null,null,null,null,null,null,null,null,null,null,"Pinkham School","Winnipeg"]
[null,null,null,null,null,null,null,294,{"$f":"W294&\" - \"&V294","v":"Winnipeg - Prairie Rose Elementary School"},null,null,null,null,null,null,null,null,null,null,null,null,"Prairie Rose Elementary School","Winnipeg"]
[null,null,null,null,null,null,null,295,{"$f":"W295&\" - \"&V295","v":"Winnipeg - Principal Sparling School"},null,null,null,null,null,null,null,null,null,null,null,null,"Principal Sparling School","Winnipeg"]
[null,null,null,null,null,null,null,296,{"$f":"W296&\" - \"&V296","v":"Winnipeg - Queenston School"},null,null,null,null,null,null,null,null,null,null,null,null,"Queenston School","Winnipeg"]
[null,null,null,null,null,null,null,297,{"$f":"W297&\" - \"&V297","v":"Winnipeg - R.B. Russell Vocational School"},null,null,null,null,null,null,null,null,null,null,null,null,"R.B. Russell Vocational School","Winnipeg"]
[null,null,null,null,null,null,null,298,{"$f":"W298&\" - \"&V298","v":"Winnipeg - Ralph Brown School"},null,null,null,null,null,null,null,null,null,null,null,null,"Ralph Brown School","Winnipeg"]
[null,null,null,null,null,null,null,299,{"$f":"W299&\" - \"&V299","v":"Winnipeg - River Elm School"},null,null,null,null,null,null,null,null,null,null,null,null,"River Elm School","Winnipeg"]
[null,null,null,null,null,null,null,300,{"$f":"W300&\" - \"&V300","v":"Winnipeg - River Heights School"},null,null,null,null,null,null,null,null,null,null,null,null,"River Heights School","Winnipeg"]
[null,null,null,null,null,null,null,301,{"$f":"W301&\" - \"&V301","v":"Winnipeg - Riverview School"},null,null,null,null,null,null,null,null,null,null,null,null,"Riverview School","Winnipeg"]
[null,null,null,null,null,null,null,302,{"$f":"W302&\" - \"&V302","v":"Winnipeg - Robert H. Smith School"},null,null,null,null,null,null,null,null,null,null,null,null,"Robert H. Smith School","Winnipeg"]
[null,null,null,null,null,null,null,303,{"$f":"W303&\" - \"&V303","v":"Winnipeg - Robertson School"},null,null,null,null,null,null,null,null,null,null,null,null,"Robertson School","Winnipeg"]
[null,null,null,null,null,null,null,304,{"$f":"W304&\" - \"&V304","v":"Winnipeg - Rockwood School"},null,null,null,null,null,null,null,null,null,null,null,null,"Rockwood School","Winnipeg"]
[null,null,null,null,null,null,null,305,{"$f":"W305&\" - \"&V305","v":"Winnipeg - Sargent Park School"},null,null,null,null,null,null,null,null,null,null,null,null,"Sargent Park School","Winnipeg"]
[null,null,null,null,null,null,null,306,{"$f":"W306&\" - \"&V306","v":"Winnipeg - Shaughnessy Park School"},null,null,null,null,null,null,null,null,null,null,null,null,"Shaughnessy Park School","Winnipeg"]
[null,null,null,null,null,null,null,307,{"$f":"W307&\" - \"&V307","v":"Winnipeg - Sister Macnamara School"},null,null,null,null,null,null,null,null,null,null,null,null,"Sister Macnamara School","Winnipeg"]
[null,null,null,null,null,null,null,308,{"$f":"W308&\" - \"&V308","v":"Winnipeg - St. John's High School"},null,null,null,null,null,null,null,null,null,null,null,null,"St. John's High School","Winnipeg"]
[null,null,null,null,null,null,null,309,{"$f":"W309&\" - \"&V309","v":"Winnipeg - Stanley Knowles School"},null,null,null,null,null,null,null,null,null,null,null,null,"Stanley Knowles School","Winnipeg"]
[null,null,null,null,null,null,null,310,{"$f":"W310&\" - \"&V310","v":"Winnipeg - Strathcona School"},null,null,null,null,null,null,null,null,null,null,null,null,"Strathcona School","Winnipeg"]
[null,null,null,null,null,null,null,311,{"$f":"W311&\" - \"&V311","v":"Winnipeg - Tech-Vocational High School"},null,null,null,null,null,null,null,null,null,null,null,null,"Tech-Vocational High School","Winnipeg"]
[null,null,null,null,null,null,null,312,{"$f":"W312&\" - \"&V312","v":"Winnipeg - Tyndall Park Community School"},null,null,null,null,null,null,null,null,null,null,null,null,"Tyndall Park Community School","Winnipeg"]
[null,null,null,null,null,null,null,313,{"$f":"W313&\" - \"&V313","v":"Winnipeg - Victoria-Albert School"},null,null,null,null,null,null,null,null,null,null,null,null,"Victoria-Albert School","Winnipeg"]
[null,null,null,null,null,null,null,314,{"$f":"W314&\" - \"&V314","v":"Winnipeg - Wellington School"},null,null,null,null,null,null,null,null,null,null,null,null,"Wellington School","Winnipeg"]
[null,null,null,null,null,null,null,315,{"$f":"W315&\" - \"&V315","v":"Winnipeg - Weston School"},null,null,null,null,null,null,null,null,null,null,null,null,"Weston School","Winnipeg"]
[null,null,null,null,null,null,null,316,{"$f":"W316&\" - \"&V316","v":"Winnipeg - William Whyte School"},null,null,null,null,null,null,null,null,null,null,null,null,"William Whyte School","Winnipeg"]
[null,null,null,null,null,null,null,317,{"$f":"W317&\" - \"&V317","v":"Winnipeg - Winnipeg Adult Education Centre"},null,null,null,null,null,null,null,null,null,null,null,null,"Winnipeg Adult Education Centre","Winnipeg"]
[null,null,null,null,null,null,null,318,{"$f":"W318&\" - \"&V318","v":"Winnipeg - Winnipeg School Division Virtual School"},null,null,null,null,null,null,null,null,null,null,null,null,"Winnipeg School Division Virtual School","Winnipeg"]
[null,null,null,null,null,null,null,319,{"$f":"W319&\" - \"&V319","v":"Winnipeg - Wolseley School"},null,null,null,null,null,null,null,null,null,null,null,null,"Wolseley School","Winnipeg"]
[null,null,null,null,null,null,null,320]
[null,null,null,null,null,null,null,321]
[null,null,null,null,null,null,null,322]
[null,null,null,null,null,null,null,{"$f":"+H322+1","v":323}]
[null,null,null,null,null,null,null,324]
[null,null,null,null,null,null,null,325]
[null,null,null,null,null,null,null,326]
[null,null,null,null,null,null,null,327]
[null,null,null,null,null,null,null,328]
[null,null,null,null,null,null,null,329]
[null,null,null,null,null,null,null,330]
[null,null,null,null,null,null,null,331]
[null,null,null,null,null,null,null,332]
[null,null,null,null,null,null,null,333]
[null,null,null,null,null,null,null,334]
[null,null,null,null,null,null,null,335]
[null,null,null,null,null,null,null,336]
[null,null,null,null,null,null,null,337]
[null,null,null,null,null,null,null,338]
[null,null,null,null,null,null,null,339]
[null,null,null,null,null,null,null,340]
[null,null,null,null,null,null,null,341]
[null,null,null,null,null,null,null,342]
[null,null,null,null,null,null,null,343]
[null,null,null,null,null,null,null,344]
[null,null,null,null,null,null,null,345]
[null,null,null,null,null,null,null,346]
[null,null,null,null,null,null,null,347]
[null,null,null,null,null,null,null,348]
[null,null,null,null,null,null,null,349]
[null,null,null,null,null,null,null,350]
[null,null,null,null,null,null,null,351]
[null,null,null,null,null,null,null,352]
[null,null,null,null,null,null,null,353]
[null,null,null,null,null,null,null,354]
[null,null,null,null,null,null,null,355]
[null,null,null,null,null,null,null,356]
[null,null,null,null,null,null,null,357]
[null,null,null,null,null,null,null,358]
[null,null,null,null,null,null,null,359]
[null,null,null,null,null,null,null,360]
[null,null,null,null,null,null,null,361]
[null,null,null,null,null,null,null,362]
[null,null,null,null,null,null,null,363]
[null,null,null,null,null,null,null,364]
[null,null,null,null,null,null,null,365]
[null,null,null,null,null,null,null,366]

{"sheet":"Update School Info Here","index":2,"n_rows":70,"n_cols":13,"rows_kept":70,"cut":false,"hidden":true,"merged":[]}
[]
[]
[{"$f":"COUNTA(D5:D70)","v":66},"EMPDIV","LOCDIV","NBR","SCHOOL_NAME","SCHOOL_ADDR_LINE1",null,"SCHOOL_ADDR_LINE2","CITY","POSTAL_CODE","LOW_GRADE","HIGH_GRADE","OPENING"]
[]
["Funded Independent Schools",107,186,2221,"ACADÉMIE ISLAMIQUE DU MANITOBA",{"$f":"G5&\"     \"&H5","v":"178 WORTHINGTON AVENUE     "},"178 WORTHINGTON AVENUE",null,"WINNIPEG","R2M1R7","K",8,2003]
["Funded Independent Schools",107,188,2114,"ALHIJRA ISLAMIC SCHOOL",{"$f":"G6&\"     \"&H6","v":"410 DESALABERRY AVENUE     "},"410 DESALABERRY AVENUE",null,"WINNIPEG","R2L0Y7","K",9,1996]
["Funded Independent Schools",107,127,1733,"AUSTIN CHRISTIAN ACADEMY","BOX 460     ","BOX 460",null,"AUSTIN","R0H0C0","K",12]
["Funded Independent Schools",107,151,1536,"BALMORAL HALL SCHOOL","630 WESTMINSTER AVENUE     ","630 WESTMINSTER AVENUE",null,"WINNIPEG","R3C3S1","K",12]
["Funded Independent Schools",107,186,2102,"BEAUTIFUL SAVIOR LUTHERAN SCHOOL","52 BIRCHDALE AVE.     ","52 BIRCHDALE AVE.",null,"WINNIPEG","R2H1R9","N",8,1995]
["Funded Independent Schools",107,196,1077,"CALVIN CHRISTIAN SCHOOL","245 SUTTON AVENUE     ","245 SUTTON AVENUE",null,"WINNIPEG","R2G0T1","K",12]
["Funded Independent Schools",107,193,2055,"CARTWRIGHT COMMUNITY INDEPENDENT SCH.","BOX 419  810 BROADWAY STREET     ","BOX 419  810 BROADWAY STREET",null,"CARTWRIGHT","R0K0L0",12,12]
["Funded Independent Schools",107,151,1861,"CHILDREN'S HOUSE","150 PACIFIC AVENUE     ","150 PACIFIC AVENUE",null,"WINNIPEG","R3B3K8","N","K"]
["F.I. Schools-Catholic",198,186,1482,"CHRIST THE KING SCHOOL","12 LENNOX AVENUE     ","12 LENNOX AVENUE",null,"WINNIPEG","R2M1A6","N",8]
["Funded Independent Schools",107,119,1148,"CHRISTIAN HERITAGE SCHOOL","2025 26TH STREET     ","2025 26TH STREET",null,"BRANDON","R7B3Y2","K",8]
["Funded Independent Schools",107,120,1239,"COMMUNITY BIBLE FELLOWSHIP CHRISTIAN","BOX 1630     ","BOX 1630",null,"SWAN RIVER","R0L1Z0","K",8]
["Funded Independent Schools",107,118,2284,"DASMESH SCHOOL","105 HOLMES ROAD     ","105 HOLMES ROAD",null,"WEST ST. PAUL","R4A6A2","N",10,2012]
["Funded Independent Schools",107,195,1157,"DUFFERIN CHRISTIAN SCHOOL","BOX 1450     ","BOX 1450",null,"CARMAN","R0G0J0","K",12]
["Funded Independent Schools",107,118,1315,"FAITH ACADEMY","437 MATHESON AVE.     ","437 MATHESON AVE.",null,"WINNIPEG","R2W0E1","K",12]
["Funded Independent Schools",107,151,2317,"FREEDOM INTERNATIONAL SCHOOL","771 SARGENT AVENUE     ","771 SARGENT AVENUE",null,"WINNIPEG","R3E0B5",8,12,2018]
["F.I. Schools-Catholic",198,151,2311,"GONZAGA MIDDLE SCHOOL","174 MAPLE STREET NORTH     ","174 MAPLE STREET NORTH",null,"WINNIPEG","R2W3L4",6,8,2016]
["F.I.School-Jewish Education Authority",165,151,2230,"GRAY ACADEMY OF JEWISH EDUCATION","100 - 123 DONCASTER STREET     ","100 - 123 DONCASTER STREET",null,"WINNIPEG","R3N2B4","N",12,2003]
["Funded Independent Schools",107,191,2151,"GREEN ACRES COLONY HIGH SCHOOL","BOX 190     ","BOX 190",null,"WAWANESA","R0K2G0",9,12,2000]
["Funded Independent Schools",107,127,2117,"H. B. COMMUNITY SCHOOL","BOX 40     ","BOX 40",null,"MACGREGOR","R0H0R0","K",12,1996]
["F.I. Schools-Catholic",198,186,1549,"HOLY CROSS SCHOOL","300 DUBUC STREET     ","300 DUBUC STREET",null,"WINNIPEG","R2H1E4","K",8]
["F.I. Schools-Catholic",198,151,1653,"HOLY GHOST SCHOOL","319 SELKIRK AVENUE     ","319 SELKIRK AVENUE",null,"WINNIPEG","R2W2L8","K",8]
["F.I. Schools-Catholic",198,151,1523,"IMMACULATE HEART OF MARY SCHOOL","650 FLORA AVENUE     ","650 FLORA AVENUE",null,"WINNIPEG","R2W2S5","N",8]
["Funded Independent Schools",107,196,1274,"IMMANUEL CHRISTIAN SCHOOL","215 ROUGEAU AVENUE     ","215 ROUGEAU AVENUE",null,"WINNIPEG","R2C3Z9","K",12]
["Funded Independent Schools",107,188,2308,"INSPIRED EXPLORATIONS LEARNING COMMUNITY","UNIT A - 5905 ROBLIN BLVD     ","UNIT A - 5905 ROBLIN BLVD",null,"WINNIPEG","R3R0G8","N",8,2016]
["Funded Independent Schools",107,151,2291,"IQRA ISLAMIC SCHOOL","404 WEBB PLACE     ","404 WEBB PLACE",null,"WINNIPEG","R3B3J4","N",8,2014]
["Funded Independent Schools",107,103,2197,"KOLA COMMUNITY SCHOOL","BOX 553     ","BOX 553",null,"KOLA","R0M1B0","N","K"]
["Funded Independent Schools",107,141,1998,"LAKESIDE CHRISTIAN SCHOOL","BOX 894     237 HAMMOND STREET","BOX 894","237 HAMMOND STREET","KILLARNEY","R0K1G0","K",12]
["Funded Independent Schools",107,151,1981,"LINDEN CHRISTIAN SCHOOL","877 WILKES AVENUE     ","877 WILKES AVENUE",null,"WINNIPEG","R3P1B8","K",12]
["Funded Independent Schools",107,151,1101,"MENNONITE BRETHREN COLLEGIATE INST.","173 TALBOT AVENUE     ","173 TALBOT AVENUE",null,"WINNIPEG","R2L0P6",5,12]
["Funded Independent Schools",107,185,1345,"MENNONITE COLLEGIATE INSTITUTE","BOX 250     466 MARY STREET","BOX 250","466 MARY STREET","GRETNA","R0G0V0",9,12]
["Funded Independent Schools",107,151,2042,"MONTESSORI LEARNING CENTRES (RIVERVIEW)","170 ASHLAND AVENUE     ","170 ASHLAND AVENUE",null,"WINNIPEG","R3L1L1","N","K"]
["Funded Independent Schools",107,144,1670,"MORWEENA CHRISTIAN SCHOOL","BOX 1030     ","BOX 1030",null,"ARBORG","R0C0A0","K",12]
["Funded Independent Schools",107,155,2243,"NORTHERN SHIELD ACADEMY","619 - 4TH STREET EAST     BOX 1309","619 - 4TH STREET EAST","BOX 1309","STONEWALL","R0C2Z0",3,12,2004]
["Funded Independent Schools",107,136,2293,"NOVA MONTESSORI","C-3311 PEMBINA HIGHWAY     ","C-3311 PEMBINA HIGHWAY",null,"WINNIPEG","R3V1T7","N","K",2014]
["Funded Independent Schools",107,156,2105,"ODANAH COLONY SCHOOL","BOX 990     ","BOX 990",null,"MINNEDOSA","R0J1E0","K",12,1995]
["Funded Independent Schools",107,118,1997,"OHOLEI TORAH SCHOOL","1845 MATHERS AVENUE     ","1845 MATHERS AVENUE",null,"WINNIPEG","R3N0N2","N",8]
["F.I. Schools-Catholic",198,151,1241,"OUR LADY OF VICTORY SCHOOL","249 ARNOLD AVENUE     ","249 ARNOLD AVENUE",null,"WINNIPEG","R3L0W4","K",8]
["Funded Independent Schools",107,153,1407,"PINE CREEK SCHOOL","PINE CREEK COLONY     BOX 370","PINE CREEK COLONY","BOX 370","AUSTIN","R0H0C0","K",12]
["Funded Independent Schools",107,195,1362,"POPLAR POINT COLONY SCHOOL","BOX 910     ","BOX 910",null,"PORTAGE LA PRAIRIE","R1N3C4","K",12]
["Funded Independent Schools",107,151,1304,"PRAIRIE CENTRAL ADVENTIST ACADEMY","56 GREY STREET     ","56 GREY STREET",null,"WINNIPEG","R2L1V3","N",12]
["Funded Independent Schools",107,151,2326,"SHAWENIM ABINOOJII SCHOOL","323-181 HIGGINS AVENUE     ","323-181 HIGGINS AVENUE",null,"WINNIPEG","R2B3G1",9,12,2019]
["Funded Independent Schools",107,195,2219,"SILVERWINDS SCHOOL","BOX 130     ","BOX 130",null,"SPERLING","R0G2M0","K",12,2003]
["Funded Independent Schools",107,186,1942,"SPRINGS CHRISTIAN ACADEMY","261 YOUVILLE STREET     ","261 YOUVILLE STREET",null,"WINNIPEG","R2H2S7","K",12]
["Funded Independent Schools",107,151,2109,"ST. AIDAN'S CHRISTIAN SCHOOL","418 ABERDEEN AVENUE     ","418 ABERDEEN AVENUE",null,"WINNIPEG","R2W1V7","N",10,1995]
["F.I. Schools-Catholic",198,196,1087,"ST. ALPHONSUS SCHOOL","343 MUNROE AVENUE     ","343 MUNROE AVENUE",null,"WINNIPEG","R2K1H2","K",8]
["F.I. Schools-Catholic",198,186,1257,"ST. BONIFACE DIOCESAN HIGH SCHOOL","282 DUBUC STREET     ","282 DUBUC STREET",null,"WINNIPEG","R2H1E4",9,12]
["F.I. Schools-Catholic",198,114,1244,"ST. CHARLES INTERPAROCHIAL SCHOOL","331 ST. CHARLES STREET     ","331 ST. CHARLES STREET",null,"WINNIPEG","R3K1T6","K",8]
["F.I. Schools-Catholic",198,151,1430,"ST. EDWARD'S SCHOOL","836 ARLINGTON STREET     ","836 ARLINGTON STREET",null,"WINNIPEG","R3E2E4","K",6]
["F.I. Schools-Catholic",198,186,1791,"ST. EMILE SCHOOL","552 ST. ANNE'S ROAD     ","552 ST. ANNE'S ROAD",null,"WINNIPEG","R2M3G4","K",8]
["F.I. Schools-Catholic",198,151,1562,"ST. GERARD SCHOOL","40 FOSTER STREET     ","40 FOSTER STREET",null,"WINNIPEG","R2L1V7","N",8]
["F.I. Schools-Catholic",198,151,1829,"ST. IGNATIUS SCHOOL","239 HARROW STREET     ","239 HARROW STREET",null,"WINNIPEG","R3M2Y3","N",8]
["F.I. Schools-Catholic",198,151,1729,"ST. JOHN BREBEUF SCHOOL","605 RENFREW STREET     ","605 RENFREW STREET",null,"WINNIPEG","R3N1J8","K",8]
["Funded Independent Schools",107,188,1155,"ST. JOHN'S-RAVENSCOURT SCHOOL","400 SOUTH DRIVE     ","400 SOUTH DRIVE",null,"WINNIPEG","R3T3K5","K",12]
["F.I. Schools-Catholic",198,196,1756,"ST. JOSEPH THE WORKER SCHOOL","505 BREWSTER STREET     ","505 BREWSTER STREET",null,"WINNIPEG","R2C2W6","N",6]
["F.I. Schools-Catholic",198,151,1478,"ST. MARY'S ACADEMY","550 WELLINGTON CRESCENT     ","550 WELLINGTON CRESCENT",null,"WINNIPEG","R3M0C1",7,12]
["F.I. Schools-Catholic",198,188,1232,"ST. MAURICE SCHOOL","1639 PEMBINA HIGHWAY     ","1639 PEMBINA HIGHWAY",null,"WINNIPEG","R3T2G6","K",12]
["F.I. Schools-Catholic",198,188,1832,"ST. PAUL'S HIGH SCHOOL","2200 GRANT AVENUE     ","2200 GRANT AVENUE",null,"WINNIPEG","R3P0P8",9,12]
["Funded Independent Schools",107,174,1453,"STEINBACH CHRISTIAN SCHOOL","50 PTH 12 NORTH     ","50 PTH 12 NORTH",null,"STEINBACH","R5G1T4","K",12]
["Funded Independent Schools",107,118,1962,"THE KING'S SCHOOL","745 KAPELUS DRIVE     ","745 KAPELUS DRIVE",null,"WEST ST. PAUL","R4A5A4","N",12]
["Funded Independent Schools",107,114,1980,"THE LAUREATE ACADEMY","100 VILLA MARIA PLACE     ","100 VILLA MARIA PLACE",null,"WINNIPEG","R3V1A9",1,12]
["Funded Independent Schools",107,151,1690,"UNIVERSITY OF WINNIPEG COLLEGIATE","515 PORTAGE AVENUE     ","515 PORTAGE AVENUE",null,"WINNIPEG","R3B2E9",9,12]
["Funded Independent Schools",107,151,1285,"WESTGATE MENNONITE COLLEGIATE","86 WEST GATE     ","86 WEST GATE",null,"WINNIPEG","R3E2E1",6,12]
["Funded Independent Schools",107,121,1983,"WESTPARK SCHOOL","2375B SASKATCHEWAN AVENUE W     ","2375B SASKATCHEWAN AVENUE W",null,"PORTAGE LA PRAIRIE","R1N4A6","K",12]
["Funded Independent Schools",107,195,1988,"WINGHAM HB SCHOOL","BOX 219     ","BOX 219",null,"ELM CREEK","R0G0N0","K",12]
["Funded Independent Schools",107,114,1242,"WINNIPEG MENNONITE ELEM & MIDDLE SCHOOLS","250 BEDSON STREET     ","250 BEDSON STREET",null,"WINNIPEG","R3K1R7","K",8]
["Funded Independent Schools",107,188,1961,"WINNIPEG SOUTH ACADEMY",{"$f":"G70&\"     \"&H70","v":"870 SCOTLAND AVE.     "},"870 SCOTLAND AVE.",null,"WINNIPEG","R3M1X8","N",4]